Workbook

Sheet РП (акт)
T1: Приложение к постановлению Администрации Томской области от 18.12.2024 № 573а
T2: Приложение к Региональной программе капитального ремонта общего имущества в многоквартирных домах, расположенных на территории Томской области
A3: Перечень многоквартирных домов, расположенных на территории Томской области, в отношении которых планируется проведение капитального ремонта общего имущества
A5: № п/п | C5: Код МКД в Региональной программе | D5: Адрес МКД | L5: Год ввода в эксплуата- цию МКД | M5: Общая площадь МКД (включает площадь жилых и нежилых помещений, мест общего пользова-ния), кв. м | N5: Общая площадь жилых и нежилых помещений МКД (без учета помещений, относящихся к общему имуществу собствен- ников), кв. м | O5: Перечень услуг и (или) работ по капитальному ремонту общего имущества в МКД и плановый период*** их проведения
D7: наименование муниципально-го района (городского округа) | E7: наименование сельского (городского) поселения | F7: населенный пункт | G7: внутригород- ские территории | H7: улица | I7: дом | J7: корпус | K7: строение | O7: 2014- 2016 гг. | P7: 2017- 2019 гг. | Q7: 2020- 2022 гг. | R7: 2023- 2025 гг. | S7: 2026- 2028 гг. | T7: 2029- 2031 гг. | U7: 2032- 2034 гг. | V7: 2035- 2037 гг. | W7: 2038- 2040 гг. | X7: 2041- 2043 гг. | Y7: 2044- 2046 гг. | Z7: 2047- 2049 гг. | AA7: 2050- 2052 гг. | AB7: 2053- 2055 гг. | AC7: 2056- 2058 гг. | AD7: 2059- 2061 гг.
A9: 1 | B9: 2 | C9: 3 | D9: 4 | E9: 5 | F9: 6 | G9: 7 | H9: 8 | I9: 9 | J9: 10 | K9: 11 | L9: 12 | M9: 13 | N9: 14 | O9: 15 | P9: 16 | Q9: 17 | R9: 18 | S9: 19 | T9: 20 | U9: 21 | V9: 22 | W9: 23 | X9: 24 | Y9: 25 | Z9: 26 | AA9: 27 | AB9: 28 | AC9: 29 | AD9: 30
D10: Всего по Томской области | E10: X | F10: X | G10: X | H10: X | I10: X | K10: X | L10: X | M10: =M11+M95+M351+M379+M416+M451+M3202+M3941+M4188+M4246+M4335+M4375+M4821+M4864+M4918+M4969+M5042+M5050+M5470+M5506 -> 21811327.64 | N10: 17579149.28 | O10: 266 | P10: 463 | Q10: 413 | R10: 568 | S10: 766 | T10: 567 | U10: 1122 | V10: 1072 | W10: 1001 | X10: 1028 | Y10: 1050 | Z10: 2514 | AA10: 2303 | AB10: 2252 | AC10: 2196 | AD10: 2204
D11: Итого по муниципальному образованию Александровский район | E11: X | F11: X | G11: X | H11: X | I11: X | K11: X | L11: X | M11: =SUM(M12:M94) -> 51151.5 | N11: =SUM(N12:N94) -> 43085.7 | O11: =COUNTIF(O12:O94,"*") -> 2 | P11: 2 | Q11: 1 | R11: 6 | S11: 1 | T11: 8 | U11: 44 | V11: 44 | W11: 39 | X11: 38 | Y11: 44 | Z11: 17 | AA11: 14 | AB11: 6 | AC11: 7 | AD11: 9
A12: 1 | B12: 1 | C12: 4651 | D12: Александровский район | E12: Александровское сельское поселение | F12: с. Александровское | H12: ул. Брусничная | I12: 3 | L12: 1969 | M12: 363.8 | N12: 330.8 | Q12: 0 | R12: 0 | S12: 0 | T12: 0 | U12: ТС ХВС | V12: ЭС К НОК | W12: 0 | X12: 0 | Y12: ВО РУФ | Z12: 0 | AA12: 0 | AB12: 0 | AC12: 0 | AD12: 0
A13: 2 | B13: 2 | C13: 4652 | D13: Александровский район | E13: Александровское сельское поселение | F13: с. Александровское | H13: ул. Брусничная | I13: 5 | L13: 1969 | M13: 360.5 | N13: 329.3 | Q13: 0 | R13: ТС ХВС | S13: 0 | T13: 0 | U13: ВО РУФ Ф | V13: 0 | W13: ЭС К НОК | X13: 0 | Y13: 0 | Z13: 0 | AA13: 0 | AB13: 0 | AC13: 0 | AD13: 0 | AE13: =AE10-AE12 -> 0 | AF13: =AF10-AF12 -> 0
A14: 3 | B14: 3 | C14: 4653 | D14: Александровский район | E14: Александровское сельское поселение | F14: с. Александровское | H14: пер. Взлетный | I14: 1 | L14: 1978 | M14: 358.2 | N14: 326 | Q14: 0 | R14: 0 | S14: 0 | T14: 0 | U14: 0 | V14: ТС ХВС ВО РУФ | W14: 0 | X14: ЭС К НОК | Y14: 0 | Z14: 0 | AA14: Ф | AB14: 0 | AC14: 0 | AD14: 0
A15: 4 | B15: 4 | C15: 4654 | D15: Александровский район | E15: Александровское сельское поселение | F15: с. Александровское | H15: пер. Взлетный | I15: 2 | L15: 1977 | M15: 410.8 | N15: 371 | Q15: 0 | R15: 0 | T15: 0 | U15: 0 | V15: 0 | W15: ВО РУФ Ф | X15: 0 | Y15: ЭС К НОК ТС ХВС | Z15: 0 | AA15: 0 | AB15: 0 | AC15: 0 | AD15: 0
A16: 5 | B16: 5 | C16: 4655 | D16: Александровский район | E16: Александровское сельское поселение | F16: с. Александровское | H16: пер. Взлетный | I16: 3 | L16: 1973 | M16: 549.1 | N16: 504.6 | Q16: 0 | R16: 0 | S16: 0 | T16: 0 | U16: ЭС К НОК | V16: ТС ХВС | W16: 0 | X16: ВО РУФ Ф | Y16: 0 | Z16: 0 | AA16: 0 | AB16: 0 | AC16: 0 | AD16: 0
A17: 6 | B17: 6 | C17: 4656 | D17: Александровский район | E17: Александровское сельское поселение | F17: с. Александровское | H17: пер. Взлетный | I17: 5 | L17: 1976 | M17: 377.8 | N17: 345.4 | Q17: 0 | R17: 0 | S17: 0 | T17: 0 | U17: ТС ХВС | V17: ЭС К НОК | W17: 0 | X17: 0 | Y17: ВО РУФ | Z17: 0 | AA17: Ф | AB17: 0 | AC17: 0 | AD17: 0
A18: 7 | B18: 7 | C18: 4657 | D18: Александровский район | E18: Александровское сельское поселение | F18: с. Александровское | H18: пер. Взлетный | I18: 6 | L18: 1976 | M18: 415.2 | N18: 374 | Q18: 0 | R18: 0 | S18: 0 | T18: 0 | U18: РУФ | V18: ТС ХВС | W18: ЭС К НОК | X18: 0 | Y18: 0 | Z18: ВО | AA18: 0 | AB18: 0 | AC18: 0 | AD18: 0
A19: 8 | B19: 8 | C19: 4660 | D19: Александровский район | E19: Александровское сельское поселение | F19: с. Александровское | H19: ул. Гоголя | I19: 19 | L19: 1969 | M19: 364.9 | N19: 330.6 | R19: 0 | S19: 0 | T19: 0 | U19: 0 | V19: 0 | W19: ВО РУФ Ф | X19: 0 | Y19: ЭС К НОК ТС ХВС | Z19: 0 | AA19: 0 | AB19: 0 | AC19: 0 | AD19: 0
A20: 9 | B20: 9 | C20: 4661 | D20: Александровский район | E20: Александровское сельское поселение | F20: с. Александровское | H20: ул. Гоголя | I20: 19а | L20: 1969 | M20: 366.6 | N20: 331.6 | Q20: ТС ХВС | R20: 0 | S20: 0 | T20: 0 | U20: ЭС К НОК | V20: 0 | W20: 0 | X20: ВО РУФ Ф | Y20: 0 | Z20: 0 | AA20: 0 | AB20: 0 | AC20: 0 | AD20: 0
A21: 10 | B21: 10 | C21: 4662 | D21: Александровский район | E21: Александровское сельское поселение | F21: с. Александровское | H21: ул. Гоголя | I21: 21 | L21: 1968 | M21: 371.7 | N21: 337 | Q21: 0 | R21: К | T21: 0 | U21: 0 | V21: ЭС НОК | W21: 0 | X21: 0 | Y21: ВО РУФ Ф | Z21: 0 | AA21: 0 | AB21: 0 | AC21: 0 | AD21: ТС
A22: 11 | B22: 11 | C22: 4663 | D22: Александровский район | E22: Александровское сельское поселение | F22: с. Александровское | H22: ул. Гоголя | I22: 21а | L22: 1968 | M22: 372.7 | N22: 337.3 | Q22: 0 | R22: 0 | S22: 0 | T22: 0 | U22: ВО РУФ | V22: ТС | W22: ЭС К НОК | X22: 0 | Y22: 0 | Z22: ХВС | AA22: 0 | AB22: 0 | AC22: 0 | AD22: 0
A23: 12 | B23: 12 | C23: 4665 | D23: Александровский район | E23: Александровское сельское поселение | F23: с. Александровское | H23: ул. Гоголя | I23: 24 | L23: 1988 | M23: 555.4 | N23: 490.2 | Q23: 0 | R23: 0 | S23: 0 | T23: 0 | U23: 0 | V23: 0 | W23: ТС ХВС ВО РУФ | X23: 0 | Y23: ЭС К НОК | Z23: Ф | AA23: 0 | AB23: 0 | AC23: 0 | AD23: 0
A24: 13 | B24: 13 | C24: 4666 | D24: Александровский район | E24: Александровское сельское поселение | F24: с. Александровское | H24: ул. Гоголя | I24: 27 | L24: 1995 | M24: 610.1 | N24: 498.9 | Q24: 0 | R24: 0 | S24: 0 | T24: 0 | U24: ЭС К НОК | V24: 0 | W24: 0 | X24: ВО РУФ | Y24: ТС ХВС | Z24: 0 | AA24: 0 | AB24: Ф | AC24: 0 | AD24: 0
A25: 14 | B25: 14 | C25: 4668 | D25: Александровский район | E25: Александровское сельское поселение | F25: с. Александровское | H25: ул. Заводская | I25: 14 | L25: 1983 | M25: 717.7 | N25: 668.9 | Q25: 0 | R25: 0 | S25: 0 | T25: 0 | U25: ТС ХВС | V25: ЭС К НОК | W25: 0 | X25: 0 | Y25: ВО РУФ | Z25: 0 | AA25: 0 | AB25: 0 | AC25: 0 | AD25: 0
A26: 15 | B26: 15 | C26: 4669 | D26: Александровский район | E26: Александровское сельское поселение | F26: с. Александровское | H26: мкр. Казахстан | I26: 1 | L26: 1981 | M26: 759.3 | N26: 716 | Q26: 0 | R26: 0 | S26: 0 | T26: 0 | U26: РУФ Ф | V26: 0 | W26: ЭС К НОК | X26: 0 | Y26: ТС ХВС ГВС | Z26: ВО | AA26: 0 | AB26: 0 | AC26: 0 | AD26: 0
A27: 16 | B27: 16 | C27: 4670 | D27: Александровский район | E27: Александровское сельское поселение | F27: с. Александровское | H27: мкр. Казахстан | I27: 2 | L27: 1981 | M27: 789.9 | N27: 704 | Q27: 0 | R27: 0 | S27: 0 | T27: ТС ХВС ГВС | U27: 0 | V27: ВО РУФ Ф | W27: 0 | X27: ЭС К НОК | Y27: 0 | Z27: 0 | AA27: 0 | AB27: 0 | AC27: 0 | AD27: 0
A28: 17 | B28: 17 | C28: 4671 | D28: Александровский район | E28: Александровское сельское поселение | F28: с. Александровское | H28: мкр. Казахстан | I28: 4 | L28: 1982 | M28: 676.4 | N28: 590.6 | Q28: 0 | R28: 0 | S28: 0 | T28: 0 | U28: 0 | V28: ТС ХВС ГВС | W28: ВО РУФ Ф | X28: 0 | Y28: ЭС К НОК | Z28: 0 | AA28: 0 | AB28: 0 | AC28: 0 | AD28: 0
A29: 18 | B29: 18 | C29: 4672 | D29: Александровский район | E29: Александровское сельское поселение | F29: с. Александровское | H29: мкр. Казахстан | I29: 5 | L29: 1982 | M29: 825.2 | N29: 733.7 | Q29: 0 | R29: 0 | S29: 0 | T29: 0 | U29: ЭС К НОК | V29: 0 | W29: 0 | X29: РУФ Ф | Y29: ТС ХВС ГВС | Z29: ВО | AA29: 0 | AB29: 0 | AC29: 0 | AD29: 0
A30: 19 | B30: 19 | C30: 4673 | D30: Александровский район | E30: Александровское сельское поселение | F30: с. Александровское | H30: мкр. Казахстан | I30: 7 | L30: 1984 | M30: 885 | N30: 797.4 | Q30: 0 | R30: 0 | S30: 0 | T30: 0 | U30: ТС ХВС ГВС | V30: ЭС К НОК | W30: 0 | X30: 0 | Y30: РУФ Ф | Z30: 0 | AA30: 0 | AB30: ВО | AC30: 0 | AD30: 0
A31: 20 | B31: 20 | C31: 4674 | D31: Александровский район | E31: Александровское сельское поселение | F31: с. Александровское | H31: мкр. Казахстан | I31: 9 | L31: 1985 | M31: 933.4 | N31: 846.2 | Q31: 0 | R31: 0 | S31: 0 | T31: 0 | U31: ВО РУФ Ф | V31: ТС ХВС ГВС | W31: ЭС К НОК | X31: 0 | Y31: 0 | Z31: 0 | AA31: 0 | AB31: 0 | AC31: 0 | AD31: 0
A32: 21 | B32: 21 | C32: 4675 | D32: Александровский район | E32: Александровское сельское поселение | F32: с. Александровское | H32: мкр. Казахстан | I32: 10 | L32: 1986 | M32: 940.6 | N32: 847.6 | Q32: 0 | R32: 0 | S32: 0 | T32: 0 | U32: 0 | V32: РУФ Ф | W32: ТС | X32: ЭС К НОК | Y32: 0 | Z32: ХВС ГВС | AA32: 0 | AB32: ВО | AC32: 0 | AD32: 0
A33: 22 | B33: 22 | C33: 4676 | D33: Александровский район | E33: Александровское сельское поселение | F33: с. Александровское | H33: мкр. Казахстан | I33: 11 | L33: 1983 | M33: 1222.7 | N33: 767.7 | Q33: 0 | R33: 0 | S33: 0 | T33: 0 | U33: 0 | V33: 0 | W33: ВО РУФ | X33: ТС ХВС ГВС | Y33: ЭС К НОК | Z33: 0 | AA33: 0 | AB33: 0 | AC33: 0 | AD33: 0
A34: 23 | B34: 23 | C34: 4677 | D34: Александровский район | E34: Александровское сельское поселение | F34: с. Александровское | H34: мкр. Казахстан | I34: 1а | L34: 1981 | M34: 1657 | N34: 1175.6 | Q34: 0 | R34: 0 | S34: 0 | T34: 0 | U34: ТС ХВС ГВС ЭС К НОК | V34: 0 | W34: 0 | X34: РУФ Ф | Y34: 0 | Z34: ВО | AA34: 0 | AB34: 0 | AC34: 0 | AD34: 0
A35: 24 | B35: 24 | C35: 4678 | D35: Александровский район | E35: Александровское сельское поселение | F35: с. Александровское | H35: мкр. Казахстан | I35: 2а | L35: 1981 | M35: 1630.9 | N35: 1200.1 | Q35: 0 | R35: 0 | S35: 0 | T35: 0 | U35: 0 | V35: ЭС К | W35: 0 | X35: ТС ХВС ГВС | Y35: РУФ Ф | Z35: ВО | AA35: 0 | AB35: 0 | AC35: 0 | AD35: 0
A36: 25 | B36: 25 | C36: 4679 | D36: Александровский район | E36: Александровское сельское поселение | F36: с. Александровское | H36: мкр. Казахстан | I36: 3а | L36: 1981 | M36: 1621.8 | N36: 1185.7 | Q36: 0 | R36: 0 | S36: 0 | T36: 0 | U36: ТС ХВС ГВС ВО РУФ Ф | V36: 0 | W36: ЭС К | X36: 0 | Y36: 0 | Z36: 0 | AA36: 0 | AB36: 0 | AC36: 0 | AD36: 0
A37: 26 | B37: 26 | C37: 4688 | D37: Александровский район | E37: Александровское сельское поселение | F37: с. Александровское | H37: ул. Лебедева | I37: 40 | L37: 1976 | M37: 545.6 | N37: 499.3 | Q37: 0 | R37: 0 | S37: 0 | T37: 0 | U37: 0 | V37: ВО РУФ | W37: 0 | X37: ТС ХВС ЭС К НОК | Y37: 0 | Z37: 0 | AA37: 0 | AB37: Ф | AC37: 0 | AD37: 0
A38: 27 | B38: 27 | C38: 4689 | D38: Александровский район | E38: Александровское сельское поселение | F38: с. Александровское | H38: пер. Лебедева | I38: 2 | L38: 1971 | M38: 368.8 | N38: 335 | Q38: 0 | R38: 0 | S38: 0 | T38: 0 | U38: ТС ХВС | V38: 0 | W38: ВО РУФ | X38: 0 | Y38: ЭС К НОК | Z38: 0 | AA38: 0 | AB38: 0 | AC38: Ф | AD38: 0
A39: 28 | B39: 28 | C39: 4690 | D39: Александровский район | E39: Александровское сельское поселение | F39: с. Александровское | H39: пер. Лебедева | I39: 4 | L39: 1970 | M39: 381.2 | N39: 332.6 | Q39: 0 | R39: 0 | S39: 0 | T39: 0 | U39: ЭС К НОК | V39: 0 | W39: ТС ХВС | X39: ВО РУФ | Y39: 0 | Z39: 0 | AA39: 0 | AB39: 0 | AC39: Ф | AD39: 0
A40: 29 | B40: 29 | C40: 4691 | D40: Александровский район | E40: Александровское сельское поселение | F40: с. Александровское | H40: ул. Ленина | I40: 13 | L40: 1971 | M40: 369.5 | N40: 330.3 | Q40: 0 | R40: 0 | S40: 0 | T40: 0 | U40: 0 | V40: ЭС К НОК | W40: 0 | X40: ТС ХВС | Y40: ВО РУФ | Z40: 0 | AA40: 0 | AB40: 0 | AC40: Ф | AD40: 0
A41: 30 | B41: 30 | C41: 4693 | D41: Александровский район | E41: Александровское сельское поселение | F41: с. Александровское | H41: ул. Ленина | I41: 15 | L41: 1971 | M41: 364.8 | N41: 329.2 | Q41: 0 | R41: 0 | S41: 0 | T41: ТС ХВС | U41: 0 | V41: РУФ Ф | W41: 0 | X41: ЭС К НОК | Y41: 0 | Z41: 0 | AA41: ВО | AB41: 0 | AC41: 0 | AD41: 0
A42: 31 | B42: 31 | C42: 4694 | D42: Александровский район | E42: Александровское сельское поселение | F42: с. Александровское | H42: ул. Ленина | I42: 16а | L42: 1979 | M42: 366.1 | N42: 333.7 | Q42: 0 | R42: 0 | T42: 0 | U42: 0 | V42: 0 | W42: ВО РУФ Ф | X42: 0 | Y42: ЭС К НОК ТС ХВС | Z42: 0 | AA42: 0 | AB42: 0 | AC42: 0 | AD42: 0
A43: 32 | B43: 32 | C43: 4695 | D43: Александровский район | E43: Александровское сельское поселение | F43: с. Александровское | H43: ул. Ленина | I43: 23 | L43: 1986 | M43: 480.4 | N43: 418.3 | Q43: 0 | R43: 0 | S43: 0 | T43: 0 | U43: ЭС К НОК | V43: ТС ХВС | W43: 0 | X43: ВО РУФ Ф | Y43: 0 | Z43: 0 | AA43: 0 | AB43: 0 | AC43: 0 | AD43: 0
A44: 33 | B44: 33 | C44: 4700 | D44: Александровский район | E44: Александровское сельское поселение | F44: с. Александровское | H44: пер. Лесной | I44: 1а | L44: 1979 | M44: 842.8 | N44: 736.4 | Q44: 0 | R44: 0 | S44: 0 | T44: 0 | U44: ТС ХВС | V44: ЭС К НОК | W44: 0 | X44: 0 | Y44: ВО РУФ | Z44: 0 | AA44: 0 | AB44: 0 | AC44: 0 | AD44: Ф
A45: 34 | B45: 34 | C45: 4701 | D45: Александровский район | E45: Александровское сельское поселение | F45: с. Александровское | H45: пер. Лесной | I45: 5 | L45: 1974 | M45: 548.4 | N45: 505.6 | Q45: 0 | R45: 0 | S45: 0 | T45: 0 | U45: РУФ | V45: ТС ХВС | W45: ЭС К НОК | X45: 0 | Y45: 0 | Z45: ВО | AA45: 0 | AB45: 0 | AC45: 0 | AD45: 0
A46: 35 | B46: 35 | C46: 4702 | D46: Александровский район | E46: Александровское сельское поселение | F46: с. Александровское | H46: пер. Лесной | I46: 7 | L46: 1978 | M46: 545.4 | N46: 510.1 | O46: 0 | P46: 0 | Q46: 0 | R46: 0 | S46: 0 | T46: 0 | U46: 0 | V46: 0 | W46: ТС | X46: ЭС НОК | Y46: РУФ К | Z46: ХВС | AA46: 0 | AB46: ВО | AC46: 0 | AD46: 0
A47: 36 | B47: 36 | C47: 4703 | D47: Александровский район | E47: Александровское сельское поселение | F47: с. Александровское | H47: пер. Лесной | I47: 9 | L47: 1987 | M47: 875.3 | N47: 769 | Q47: 0 | R47: 0 | S47: 0 | T47: 0 | U47: 0 | V47: 0 | W47: ТС ХВС ВО РУФ | X47: 0 | Y47: ЭС К НОК | Z47: 0 | AA47: 0 | AB47: 0 | AC47: 0 | AD47: 0
A48: 37 | B48: 37 | C48: 4704 | D48: Александровский район | E48: Александровское сельское поселение | F48: с. Александровское | H48: пер. Лесной | I48: 32 | L48: 1966 | M48: 360.5 | N48: 334.5 | Q48: 0 | R48: 0 | S48: 0 | T48: 0 | U48: ЭС К НОК | V48: 0 | W48: 0 | X48: ВО РУФ | Y48: ТС ХВС | Z48: 0 | AA48: 0 | AB48: 0 | AC48: 0 | AD48: Ф
A49: 38 | B49: 38 | C49: 4705 | D49: Александровский район | E49: Александровское сельское поселение | F49: с. Александровское | H49: пер. Лесной | I49: 34 | L49: 1969 | M49: 367.4 | N49: 340 | Q49: 0 | R49: 0 | S49: 0 | T49: ТС ХВС | U49: 0 | V49: ЭС К НОК | W49: 0 | X49: 0 | Y49: ВО РУФ | Z49: 0 | AA49: Ф | AB49: 0 | AC49: 0 | AD49: 0
A50: 39 | B50: 39 | C50: 4706 | D50: Александровский район | E50: Александровское сельское поселение | F50: с. Александровское | H50: пер. Лесной | I50: 36 | L50: 1968 | M50: 350.8 | N50: 336.7 | R50: 0 | S50: 0 | T50: 0 | U50: ВО РУФ Ф ТС ХВС | V50: 0 | W50: ЭС К НОК | X50: 0 | Y50: 0 | Z50: 0 | AA50: 0 | AB50: 0 | AC50: 0 | AD50: 0
A51: 40 | B51: 40 | C51: 4707 | D51: Александровский район | E51: Александровское сельское поселение | F51: с. Александровское | H51: пер. Лесной | I51: 38 | L51: 1965 | M51: 353.8 | N51: 326.2 | Q51: 0 | R51: 0 | S51: 0 | T51: 0 | U51: 0 | V51: ВО РУФ | W51: ТС ХВС | X51: ЭС К НОК | Y51: 0 | Z51: 0 | AA51: 0 | AB51: 0 | AC51: 0 | AD51: 0
A52: 41 | B52: 41 | C52: 4708 | D52: Александровский район | E52: Александровское сельское поселение | F52: с. Александровское | H52: пер. Лесной | I52: 40 | L52: 1965 | M52: 355.5 | N52: 327.5 | Q52: 0 | R52: 0 | S52: 0 | T52: 0 | U52: 0 | V52: 0 | W52: ВО РУФ | X52: ТС ХВС | Y52: ЭС К НОК | Z52: 0 | AA52: 0 | AB52: 0 | AC52: 0 | AD52: 0
A53: 42 | B53: 42 | C53: 4709 | D53: Александровский район | E53: Александровское сельское поселение | F53: с. Александровское | H53: пер. Лесной | I53: 42 | L53: 1971 | M53: 361.4 | N53: 334.8 | R53: К | S53: 0 | T53: 0 | U53: ЭС НОК ТС ХВС | V53: 0 | W53: 0 | X53: ВО РУФ Ф | Y53: 0 | Z53: 0 | AA53: 0 | AB53: 0 | AC53: 0 | AD53: 0
A54: 43 | B54: 43 | C54: 4710 | D54: Александровский район | E54: Александровское сельское поселение | F54: с. Александровское | H54: ул. Мира | I54: 1а | L54: 1976 | M54: 573.6 | N54: 520.1 | Q54: 0 | R54: 0 | S54: 0 | T54: 0 | U54: ТС ХВС | V54: ЭС К НОК | W54: 0 | X54: 0 | Y54: РУФ Ф | Z54: ВО | AA54: 0 | AB54: 0 | AC54: 0 | AD54: 0
A55: 44 | B55: 44 | C55: 4711 | D55: Александровский район | E55: Александровское сельское поселение | F55: с. Александровское | H55: ул. Мира | I55: 2а | L55: 1976 | M55: 415.5 | N55: 373.3 | Q55: 0 | R55: 0 | S55: 0 | T55: 0 | U55: РУФ Ф | V55: ТС ХВС | W55: ЭС К НОК | X55: 0 | Y55: 0 | Z55: 0 | AA55: ВО | AB55: 0 | AC55: 0 | AD55: 0
A56: 45 | B56: 45 | C56: 4712 | D56: Александровский район | E56: Александровское сельское поселение | F56: с. Александровское | H56: ул. Мира | I56: 2б | L56: 1990 | M56: 581.3 | N56: 521.4 | Q56: 0 | R56: 0 | S56: 0 | T56: 0 | U56: 0 | V56: ВО РУФ | W56: ТС ХВС | X56: ЭС К НОК | Y56: 0 | Z56: 0 | AA56: 0 | AB56: 0 | AC56: Ф | AD56: 0
A57: 46 | B57: 46 | C57: 4713 | D57: Александровский район | E57: Александровское сельское поселение | F57: с. Александровское | H57: ул. Мира | I57: 31 | L57: 1983 | M57: 303.2 | N57: 282 | Q57: 0 | R57: 0 | S57: 0 | T57: ТС ХВС | U57: 0 | V57: 0 | W57: ВО РУФ Ф | X57: 0 | Y57: ЭС К НОК | Z57: 0 | AA57: 0 | AB57: 0 | AC57: 0 | AD57: 0
A58: 47 | B58: 47 | C58: 4715 | D58: Александровский район | E58: Александровское сельское поселение | F58: с. Александровское | H58: ул. Мира | I58: 46 | L58: 1980 | M58: 558.6 | N58: 515.1 | O58: 0 | P58: 0 | Q58: 0 | R58: 0 | S58: 0 | T58: 0 | U58: ТС ХВС | V58: ЭС НОК | W58: 0 | X58: 0 | Y58: ВО РУФ К | Z58: 0 | AA58: Ф | AB58: 0 | AC58: 0 | AD58: 0
A59: 48 | B59: 48 | C59: 4716 | D59: Александровский район | E59: Александровское сельское поселение | F59: с. Александровское | H59: ул. Нефтяников | I59: 2 | L59: 1967 | M59: 376.9 | N59: 336.2 | Q59: 0 | R59: 0 | S59: 0 | T59: ТС ХВС | U59: ВО РУФ | V59: 0 | W59: ЭС К НОК | X59: 0 | Y59: 0 | Z59: Ф | AA59: 0 | AB59: 0 | AC59: 0 | AD59: 0
A60: 49 | B60: 49 | C60: 4717 | D60: Александровский район | E60: Александровское сельское поселение | F60: с. Александровское | H60: ул. Нефтяников | I60: 4 | L60: 1966 | M60: 372.9 | N60: 337.5 | Q60: 0 | R60: 0 | S60: 0 | T60: ТС ХВС | U60: 0 | V60: ВО РУФ | W60: 0 | X60: ЭС К НОК | Y60: 0 | Z60: 0 | AA60: Ф | AB60: 0 | AC60: 0 | AD60: 0
A61: 50 | B61: 50 | C61: 4720 | D61: Александровский район | E61: Александровское сельское поселение | F61: с. Александровское | H61: ул. Нефтяников | I61: 9 | L61: 1966 | M61: 528.8 | N61: 402.4 | Q61: 0 | R61: 0 | S61: 0 | T61: 0 | U61: ТС ХВС | V61: ЭС К НОК | W61: 0 | X61: 0 | Y61: ВО РУФ | Z61: 0 | AA61: 0 | AB61: 0 | AC61: 0 | AD61: 0
A62: 51 | B62: 51 | C62: 4721 | D62: Александровский район | E62: Александровское сельское поселение | F62: с. Александровское | H62: ул. Нефтяников | I62: 11 | L62: 1969 | M62: 369.1 | N62: 336.1 | Q62: 0 | R62: ТС ХВС | S62: 0 | T62: 0 | U62: ВО РУФ Ф | V62: 0 | W62: ЭС К НОК | X62: 0 | Y62: 0 | Z62: 0 | AA62: 0 | AB62: 0 | AC62: 0 | AD62: 0
A63: 52 | B63: 52 | C63: 4722 | D63: Александровский район | E63: Александровское сельское поселение | F63: с. Александровское | H63: ул. Нефтяников | I63: 12 | L63: 1966 | M63: 364.2 | N63: 336.6 | R63: 0 | S63: 0 | T63: 0 | U63: 0 | V63: ТС ХВС ВО РУФ Ф | W63: К НОК | X63: ЭС | Y63: 0 | Z63: 0 | AA63: 0 | AB63: 0 | AC63: 0 | AD63: 0
A64: 53 | B64: 53 | C64: 4726 | D64: Александровский район | E64: Александровское сельское поселение | F64: с. Александровское | H64: ул. Партизанская | I64: 28 | L64: 1968 | M64: 374 | N64: 337.8 | Q64: 0 | R64: 0 | S64: 0 | T64: 0 | U64: 0 | V64: 0 | W64: ВО РУФ | X64: ТС ХВС | Y64: ЭС К НОК | Z64: 0 | AA64: 0 | AB64: 0 | AC64: 0 | AD64: 0
A65: 54 | B65: 54 | C65: 4727 | D65: Александровский район | E65: Александровское сельское поселение | F65: с. Александровское | H65: ул. Партизанская | I65: 32 | L65: 1967 | M65: 366.6 | N65: 334.5 | Q65: 0 | R65: 0 | S65: 0 | T65: 0 | U65: ТС ХВС ЭС К НОК | V65: 0 | W65: 0 | X65: ВО РУФ | Y65: 0 | Z65: 0 | AA65: Ф | AB65: 0 | AC65: 0 | AD65: 0
A66: 55 | B66: 55 | C66: 4728 | D66: Александровский район | E66: Александровское сельское поселение | F66: с. Александровское | H66: ул. Партизанская | I66: 91 | L66: 1969 | M66: 381.5 | N66: 348.2 | Q66: 0 | R66: 0 | S66: 0 | T66: 0 | U66: 0 | V66: ЭС К НОК | W66: 0 | X66: 0 | Y66: ТС ХВС ВО РУФ | Z66: 0 | AA66: 0 | AB66: 0 | AC66: 0 | AD66: Ф
A67: 56 | B67: 56 | C67: 4730 | D67: Александровский район | E67: Александровское сельское поселение | F67: с. Александровское | H67: ул. Пушкина | I67: 46 | L67: 1988 | M67: 555 | N67: 494.3 | O67: К | Q67: 0 | R67: 0 | S67: 0 | T67: 0 | U67: ВО РУФ | V67: ТС ХВС | W67: ЭС НОК | X67: 0 | Y67: 0 | Z67: Ф | AA67: 0 | AB67: 0 | AC67: 0 | AD67: 0
A68: 57 | B68: 57 | C68: 4731 | D68: Александровский район | E68: Александровское сельское поселение | F68: с. Александровское | H68: ул. Пушкина | I68: 56 | L68: 1981 | M68: 429.3 | N68: 388.9 | P68: К | R68: 0 | S68: 0 | T68: 0 | U68: 0 | V68: ТС ХВС ВО РУФ Ф | W68: 0 | X68: ЭС НОК | Y68: 0 | Z68: 0 | AA68: 0 | AB68: 0 | AC68: 0 | AD68: 0
A69: 58 | B69: 58 | C69: 4732 | D69: Александровский район | E69: Александровское сельское поселение | F69: с. Александровское | H69: ул. Советская | I69: 6 | L69: 1966 | M69: 362.7 | N69: 331.7 | Q69: 0 | R69: 0 | S69: 0 | T69: 0 | U69: 0 | V69: 0 | W69: ТС ХВС ВО РУФ | X69: 0 | Y69: ЭС К НОК | Z69: 0 | AA69: 0 | AB69: 0 | AC69: 0 | AD69: Ф
A70: 59 | B70: 59 | C70: 4733 | D70: Александровский район | E70: Александровское сельское поселение | F70: с. Александровское | H70: ул. Советская | I70: 10 | L70: 1979 | M70: 675.3 | N70: 579.8 | Q70: 0 | R70: 0 | S70: 0 | T70: 0 | U70: ЭС К | V70: 0 | W70: 0 | X70: РУФ Ф | Y70: ТС | Z70: ХВС | AA70: 0 | AB70: ВО | AC70: 0 | AD70: 0
A71: 60 | B71: 60 | C71: 4735 | D71: Александровский район | E71: Александровское сельское поселение | F71: с. Александровское | H71: ул. Советская | I71: 15 | L71: 1990 | M71: 837 | N71: 757.5 | Q71: 0 | R71: 0 | S71: 0 | T71: 0 | U71: ТС ХВС | V71: ЭС К | W71: 0 | X71: 0 | Y71: ВО РУФ | Z71: 0 | AA71: Ф | AB71: 0 | AC71: 0 | AD71: 0
A72: 61 | B72: 61 | C72: 4737 | D72: Александровский район | E72: Александровское сельское поселение | F72: с. Александровское | H72: ул. Советская | I72: 20 | L72: 1972 | M72: 372.5 | N72: 336.2 | Q72: 0 | S72: 0 | T72: 0 | U72: 0 | V72: ТС ХВС ВО РУФ Ф | W72: 0 | X72: ЭС К НОК | Y72: 0 | Z72: 0 | AA72: 0 | AB72: 0 | AC72: 0 | AD72: 0
A73: 62 | B73: 62 | C73: 4742 | D73: Александровский район | E73: Александровское сельское поселение | F73: с. Александровское | H73: ул. Таежная | I73: 17 | L73: 1975 | M73: 578.8 | N73: 512.6 | Q73: 0 | R73: 0 | S73: 0 | T73: 0 | U73: ЭС К НОК | V73: 0 | W73: 0 | X73: ВО РУФ | Y73: ТС ХВС | Z73: 0 | AA73: 0 | AB73: 0 | AC73: 0 | AD73: 0
A74: 63 | B74: 63 | C74: 4744 | D74: Александровский район | E74: Александровское сельское поселение | F74: с. Александровское | H74: ул. Таежная | I74: 24 | L74: 1993 | M74: 371.6 | N74: 341.5 | Q74: 0 | R74: 0 | S74: 0 | T74: 0 | U74: ВО РУФ | V74: ТС ХВС | W74: ЭС К НОК | X74: 0 | Y74: 0 | Z74: 0 | AA74: 0 | AB74: 0 | AC74: 0 | AD74: 0
A75: 64 | B75: 64 | C75: 4745 | D75: Александровский район | E75: Александровское сельское поселение | F75: с. Александровское | H75: ул. Таежная | I75: 28 | L75: 1973 | M75: 584.1 | N75: 513.4 | P75: К | Q75: 0 | T75: 0 | U75: 0 | V75: ВО РУФ Ф | W75: 0 | X75: ЭС НОК | Y75: ТС ХВС | Z75: 0 | AA75: 0 | AB75: 0 | AC75: 0 | AD75: 0
A76: 65 | B76: 65 | C76: 4747 | D76: Александровский район | E76: Александровское сельское поселение | F76: с. Александровское | H76: ул. Толпарова | I76: 6 | L76: 1972 | M76: 379.1 | N76: 343.1 | Q76: 0 | R76: 0 | S76: 0 | T76: 0 | U76: 0 | V76: 0 | W76: ВО РУФ | X76: ТС ХВС | Y76: ЭС К НОК | Z76: 0 | AA76: 0 | AB76: 0 | AC76: 0 | AD76: Ф
A77: 66 | B77: 66 | C77: 4748 | D77: Александровский район | E77: Александровское сельское поселение | F77: с. Александровское | H77: ул. Толпарова | I77: 10 | L77: 1972 | M77: 362.7 | N77: 333.8 | Q77: 0 | R77: 0 | S77: 0 | T77: 0 | U77: ТС ХВС ЭС К НОК | V77: 0 | W77: 0 | X77: ВО РУФ | Y77: 0 | Z77: 0 | AA77: Ф | AB77: 0 | AC77: 0 | AD77: 0
A78: 67 | B78: 67 | C78: 4749 | D78: Александровский район | E78: Александровское сельское поселение | F78: с. Александровское | H78: ул. Толпарова | I78: 25а | L78: 1977 | M78: 531.4 | N78: 492.8 | O78: К | Q78: 0 | R78: 0 | T78: 0 | U78: 0 | V78: ЭС НОК | W78: 0 | X78: 0 | Y78: ВО РУФ Ф ТС ХВС | Z78: 0 | AA78: 0 | AB78: 0 | AC78: 0 | AD78: 0
A79: 68 | B79: 68 | C79: 4750 | D79: Александровский район | E79: Александровское сельское поселение | F79: с. Александровское | H79: ул. Толпарова | I79: 30а | L79: 1974 | M79: 586.5 | N79: 521.1 | Q79: 0 | R79: 0 | S79: 0 | T79: 0 | U79: ВО РУФ | V79: ТС ХВС | W79: ЭС К НОК | X79: 0 | Y79: 0 | Z79: 0 | AA79: 0 | AB79: 0 | AC79: 0 | AD79: 0
A80: 69 | B80: 69 | C80: 4755 | D80: Александровский район | E80: Александровское сельское поселение | F80: с. Александровское | H80: ул. Химиков | I80: 7 | L80: 1967 | M80: 361.4 | N80: 324.6 | Q80: 0 | R80: 0 | S80: 0 | T80: 0 | U80: РУФ | V80: ТС ХВС | W80: ЭС К НОК | X80: 0 | Y80: 0 | Z80: 0 | AA80: ВО | AB80: 0 | AC80: 0 | AD80: 0
A81: 70 | B81: 70 | C81: 4757 | D81: Александровский район | E81: Александровское сельское поселение | F81: с. Александровское | H81: ул. Чапаева | I81: 31а | L81: 1996 | M81: 1252.4 | N81: 981.4 | Q81: 0 | R81: 0 | S81: 0 | T81: 0 | U81: 0 | V81: 0 | W81: ВО РУФ | X81: ТС ХВС | Y81: ЭС К НОК | Z81: 0 | AA81: 0 | AB81: 0 | AC81: 0 | AD81: 0
A82: 71 | B82: 71 | C82: 4758 | D82: Александровский район | E82: Александровское сельское поселение | F82: с. Александровское | H82: ул. Чехова | I82: 11 | L82: 1973 | M82: 428.1 | N82: 383.8 | Q82: 0 | R82: 0 | S82: 0 | T82: ТС | U82: ЭС К НОК | V82: 0 | W82: 0 | X82: РУФ Ф | Y82: ХВС | Z82: ВО | AA82: 0 | AB82: 0 | AC82: 0 | AD82: 0
A83: 72 | B83: 72 | C83: 4759 | D83: Александровский район | E83: Александровское сельское поселение | F83: с. Александровское | H83: пер. Юбилейный | I83: 1 | L83: 1983 | M83: 713.4 | N83: 613.3 | Q83: 0 | R83: 0 | S83: 0 | T83: 0 | U83: 0 | V83: ЭС К | W83: 0 | X83: 0 | Y83: ТС ХВС ВО РУФ Ф | Z83: 0 | AA83: 0 | AB83: 0 | AC83: 0 | AD83: 0
A84: 73 | B84: 73 | C84: 4761 | D84: Александровский район | E84: Александровское сельское поселение | F84: с. Александровское | H84: ул. Юргина | I84: 19 | L84: 1975 | M84: 535.1 | N84: 494.4 | Q84: 0 | R84: ВО ХВС | T84: 0 | U84: РУФ Ф | V84: 0 | W84: ЭС К НОК | X84: 0 | Y84: 0 | Z84: 0 | AA84: 0 | AB84: 0 | AC84: 0 | AD84: ТС
A85: 74 | B85: 74 | C85: 4763 | D85: Александровский район | E85: Александровское сельское поселение | F85: с. Александровское | H85: ул. Юргина | I85: 37 | L85: 1990 | M85: 689.3 | N85: 593.7 | Q85: 0 | R85: 0 | S85: 0 | T85: 0 | U85: 0 | V85: 0 | W85: РУФ | X85: ТС ХВС | Y85: ЭС К НОК | Z85: 0 | AA85: ВО Ф | AB85: 0 | AC85: 0 | AD85: 0
A86: 75 | B86: 75 | C86: 4764 | D86: Александровский район | E86: Александровское сельское поселение | F86: с. Александровское | H86: ул. Юргина | I86: 38 | L86: 1997 | M86: 690.6 | N86: 613.5 | Q86: 0 | R86: 0 | S86: 0 | T86: 0 | U86: ЭС К НОК | V86: 0 | W86: 0 | X86: ВО РУФ | Y86: ТС ХВС | Z86: 0 | AA86: 0 | AB86: 0 | AC86: Ф | AD86: 0
A87: 76 | B87: 76 | C87: 4765 | D87: Александровский район | E87: Александровское сельское поселение | F87: с. Александровское | H87: ул. Юргина | I87: 39 | L87: 1981 | M87: 542.9 | N87: 477.5 | Q87: 0 | R87: 0 | S87: 0 | T87: 0 | U87: ТС ХВС | V87: ЭС К НОК | W87: 0 | X87: 0 | Y87: ВО РУФ Ф | Z87: 0 | AA87: 0 | AB87: 0 | AC87: 0 | AD87: 0
A88: 77 | B88: 77 | C88: 4766 | D88: Александровский район | E88: Александровское сельское поселение | F88: с. Александровское | H88: ул. Юргина | I88: 41 | L88: 1980 | M88: 350.2 | N88: 315.6 | Q88: 0 | R88: 0 | S88: 0 | T88: ТС ХВС | U88: ВО РУФ Ф | V88: 0 | W88: ЭС К | X88: 0 | Y88: 0 | Z88: 0 | AA88: 0 | AB88: 0 | AC88: 0 | AD88: 0
A89: 78 | B89: 78 | C89: 4767 | D89: Александровский район | E89: Александровское сельское поселение | F89: с. Александровское | H89: ул. Юргина | I89: 45 | L89: 1977 | M89: 791.2 | N89: 729.3 | Q89: 0 | R89: 0 | T89: 0 | U89: 0 | V89: ВО РУФ Ф ТС ХВС | W89: 0 | X89: ЭС К | Y89: 0 | Z89: 0 | AA89: 0 | AB89: 0 | AC89: 0 | AD89: 0
A90: 79 | B90: 79 | C90: 4768 | D90: Александровский район | E90: Александровское сельское поселение | F90: с. Александровское | H90: ул. Юргина | I90: 48 | L90: 1985 | M90: 564.9 | N90: 498.7 | Q90: 0 | R90: 0 | S90: 0 | T90: 0 | U90: 0 | V90: ТС ХВС | W90: ВО РУФ Ф | X90: 0 | Y90: ЭС К НОК | Z90: 0 | AA90: 0 | AB90: 0 | AC90: 0 | AD90: 0
A91: 80 | B91: 80 | C91: 4769 | D91: Александровский район | E91: Александровское сельское поселение | F91: с. Александровское | H91: ул. Юргина | I91: 56 | L91: 1973 | M91: 783.3 | N91: 721.5 | R91: К | S91: 0 | T91: 0 | U91: ЭС | V91: 0 | W91: 0 | X91: ВО РУФ Ф | Y91: 0 | Z91: 0 | AA91: 0 | AB91: 0 | AC91: 0 | AD91: ТС ХВС
A92: 81 | B92: 81 | C92: 4770 | D92: Александровский район | E92: Александровское сельское поселение | F92: с. Александровское | H92: ул. Юргина | I92: 60 | L92: 1975 | M92: 789.9 | N92: 728.2 | Q92: 0 | R92: 0 | S92: К | T92: 0 | U92: 0 | V92: ЭС | W92: 0 | X92: 0 | Y92: ВО РУФ Ф | Z92: 0 | AA92: 0 | AB92: 0 | AC92: 0 | AD92: ТС ХВС
A93: 82 | B93: 82 | C93: 8498 | D93: Александровский район | E93: Александровское сельское поселение | F93: с. Александровское | H93: мкр. Казахстан | I93: 14 | L93: 2017 | M93: 2503.5 | N93: 1367.1 | O93: 0 | P93: 0 | Q93: 0 | R93: 0 | S93: 0 | T93: 0 | U93: 0 | V93: 0 | W93: 0 | X93: 0 | Y93: 0 | Z93: ЭС РУФ К | AA93: ТС ХВС ГВС | AB93: 0 | AC93: ВО | AD93: 0
A94: 83 | B94: 83 | C94: 8499 | D94: Александровский район | E94: Александровское сельское поселение | F94: с. Александровское | H94: мкр. Казахстан | I94: 14а | L94: 2017 | M94: 1988.7 | N94: 1075.8 | O94: 0 | P94: 0 | Q94: 0 | R94: 0 | S94: 0 | T94: 0 | U94: 0 | V94: 0 | W94: 0 | X94: 0 | Y94: 0 | Z94: ЭС РУФ К | AA94: ТС ХВС ГВС | AB94: 0 | AC94: ВО | AD94: 0
D95: Итого по муниципальному образованию Асиновский район | E95: X | F95: X | G95: X | H95: X | I95: X | K95: X | L95: X | M95: =SUM(M96:M350) -> 451518.91 | N95: =SUM(N96:N350) -> 346677.83 | O95: =COUNTIF(O96:O350,"*") -> 12 | P95: 16 | Q95: 16 | R95: 23 | S95: 21 | T95: 26 | U95: 127 | V95: 126 | W95: 124 | X95: 131 | Y95: 119 | Z95: 34 | AA95: 32 | AB95: 22 | AC95: 6 | AD95: 4
A96: =A94+1 -> 84 | B96: 1 | C96: 4385 | D96: Асиновский район | E96: Асиновское городское поселение | F96: г. Асино | H96: ул. им. 370 Стрелковой дивизии | I96: 54 | K96: 0 | L96: 1990 | M96: 497.08 | N96: 432.77 | O96: 0 | P96: 0 | Q96: 0 | R96: 0 | S96: 0 | T96: 0 | U96: ЭС К НОК | V96: 0 | W96: 0 | X96: ВО РУФ | Y96: ТС ХВС | Z96: 0 | AA96: 0 | AB96: 0 | AC96: 0 | AD96: 0
A97: =A96+1 -> 85 | B97: =B96+1 -> 2 | C97: 4386 | D97: Асиновский район | E97: Асиновское городское поселение | F97: г. Асино | H97: ул. им. 370 Стрелковой дивизии | I97: 56 | K97: 0 | L97: 1990 | M97: 462.17 | N97: 431.4 | O97: 0 | P97: 0 | Q97: 0 | R97: 0 | S97: 0 | T97: 0 | U97: ТС ХВС ГВС | V97: ЭС К | W97: 0 | X97: 0 | Y97: ВО РУФ | Z97: 0 | AA97: Ф | AB97: 0 | AC97: 0 | AD97: 0
A98: =A97+1 -> 86 | B98: =B97+1 -> 3 | C98: 4388 | D98: Асиновский район | E98: Асиновское городское поселение | F98: г. Асино | H98: ул. 9 Мая | I98: 60 | K98: 0 | L98: 1967 | M98: 915.64 | N98: 757.93 | O98: К | P98: 0 | Q98: 0 | R98: 0 | S98: ТС ХВС | T98: 0 | U98: ВО РУФ Ф | V98: 0 | W98: ЭС | X98: 0 | Y98: 0 | Z98: 0 | AA98: 0 | AB98: 0 | AC98: 0 | AD98: 0
A99: 87 | B99: 4 | C99: 4389 | D99: Асиновский район | E99: Асиновское городское поселение | F99: г. Асино | H99: ул. 9 Мая | I99: 62 | K99: 0 | L99: 1967 | M99: 1062.2 | N99: 997.64 | O99: К | P99: 0 | Q99: 0 | R99: 0 | S99: ТС ХВС | T99: 0 | U99: 0 | V99: ВО РУФ Ф | W99: 0 | X99: ЭС | Y99: 0 | Z99: 0 | AA99: 0 | AB99: 0 | AC99: 0 | AD99: 0
A100: 88 | B100: 5 | C100: 4390 | D100: Асиновский район | E100: Асиновское городское поселение | F100: г. Асино | H100: ул. 9 Мая | I100: 62а | K100: 0 | L100: 1966 | M100: 1075.1 | N100: 991 | O100: 0 | P100: 0 | Q100: 0 | S100: 0 | T100: 0 | U100: 0 | V100: 0 | W100: ВО РУФ Ф ТС ХВС | X100: 0 | Y100: ЭС К | Z100: 0 | AA100: 0 | AB100: 0 | AC100: 0 | AD100: 0
A101: 89 | B101: 6 | C101: 4391 | D101: Асиновский район | E101: Асиновское городское поселение | F101: г. Асино | H101: ул. 9 Мая | I101: 64 | K101: 0 | L101: 1966 | M101: 1070.4 | N101: 999.17 | O101: 0 | P101: 0 | R101: К | S101: 0 | T101: 0 | U101: ЭС | V101: 0 | W101: 0 | X101: ВО РУФ Ф ТС ХВС | Y101: 0 | Z101: 0 | AA101: 0 | AB101: 0 | AC101: 0 | AD101: 0
A102: 90 | B102: 7 | C102: 4392 | D102: Асиновский район | E102: Асиновское городское поселение | F102: г. Асино | H102: ул. 9 Мая | I102: 66 | K102: 0 | L102: 1966 | M102: 1068.2 | N102: 993.12 | O102: 0 | P102: 0 | Q102: 0 | S102: 0 | T102: 0 | U102: 0 | V102: ЭС К | W102: 0 | X102: 0 | Y102: ВО РУФ Ф ТС ХВС | Z102: 0 | AA102: 0 | AB102: 0 | AC102: 0 | AD102: 0
A103: 91 | B103: 8 | C103: 4393 | D103: Асиновский район | E103: Асиновское городское поселение | F103: г. Асино | H103: ул. 9 Мая | I103: 70 | K103: 0 | L103: 1995 | M103: 5339.98 | N103: 4001.06 | O103: 0 | P103: 0 | Q103: 0 | R103: 0 | S103: 0 | T103: 0 | U103: ВО РУФ | V103: ТС ХВС ГВС | W103: К ЭС | X103: 0 | Y103: 0 | Z103: 0 | AA103: 0 | AB103: Ф | AC103: 0 | AD103: 0
A104: 92 | B104: 9 | C104: 4394 | D104: Асиновский район | E104: Асиновское городское поселение | F104: г. Асино | H104: ул. АВПУ | I104: 4 | K104: 0 | L104: 1967 | M104: 1038.08 | N104: 988.8 | O104: 0 | P104: 0 | Q104: 0 | S104: 0 | T104: 0 | U104: 0 | V104: ВО РУФ Ф | W104: 0 | X104: ЭС К ТС ХВС | Y104: 0 | Z104: 0 | AA104: 0 | AB104: 0 | AC104: 0 | AD104: 0
A105: 93 | B105: 10 | C105: 4395 | D105: Асиновский район | E105: Асиновское городское поселение | F105: г. Асино | H105: ул. АВПУ | I105: 27 | K105: 0 | L105: 1984 | M105: 756.56 | N105: 658.66 | O105: 0 | P105: К | Q105: 0 | R105: 0 | S105: 0 | T105: 0 | U105: 0 | V105: 0 | W105: ВО РУФ Ф | X105: ТС ХВС | Y105: ЭС НОК | Z105: 0 | AA105: 0 | AB105: 0 | AC105: 0 | AD105: 0
A106: 94 | B106: 11 | C106: 4396 | D106: Асиновский район | E106: Асиновское городское поселение | F106: г. Асино | H106: ул. имени В.В. Липатова | I106: 6а | K106: 0 | L106: 1988 | M106: 3032 | N106: 2628 | O106: 0 | P106: 0 | Q106: 0 | R106: 0 | S106: 0 | T106: 0 | U106: ЭС К | V106: 0 | W106: ТС ХВС ГВС | X106: ВО РУФ | Y106: 0 | Z106: Ф | AA106: 0 | AB106: 0 | AC106: 0 | AD106: 0
A107: 95 | B107: 12 | C107: 4397 | D107: Асиновский район | E107: Асиновское городское поселение | F107: г. Асино | H107: ул. имени В.В. Липатова | I107: 8 | K107: 0 | L107: 1990 | M107: 1080.9 | N107: 961.3 | O107: 0 | P107: 0 | Q107: 0 | R107: 0 | S107: 0 | T107: 0 | U107: 0 | V107: ЭС К | W107: 0 | X107: ТС ХВС ГВС | Y107: ВО РУФ | Z107: 0 | AA107: Ф | AB107: 0 | AC107: 0 | AD107: 0
A108: 96 | B108: 13 | C108: 4398 | D108: Асиновский район | E108: Асиновское городское поселение | F108: г. Асино | H108: ул. имени В.В. Липатова | I108: 23 | K108: 0 | L108: 1963 | M108: 411 | N108: 370.7 | O108: К | P108: 0 | Q108: 0 | S108: 0 | T108: 0 | U108: ВО РУФ Ф ТС ХВС ГВС | V108: 0 | W108: ЭС | X108: 0 | Y108: 0 | Z108: 0 | AA108: 0 | AB108: 0 | AC108: 0 | AD108: 0
A109: 97 | B109: 14 | C109: 4399 | D109: Асиновский район | E109: Асиновское городское поселение | F109: г. Асино | H109: ул. имени В.В. Липатова | I109: 25 | K109: 0 | L109: 1967 | M109: 374.4 | N109: 357 | O109: 0 | P109: 0 | Q109: К | R109: 0 | S109: 0 | T109: 0 | U109: 0 | V109: ВО РУФ Ф | W109: 0 | X109: ЭС ТС ХВС ГВС | Y109: 0 | Z109: 0 | AA109: 0 | AB109: 0 | AC109: 0 | AD109: 0
A110: 98 | B110: 15 | C110: 4400 | D110: Асиновский район | E110: Асиновское городское поселение | F110: г. Асино | H110: ул. имени В.В. Липатова | I110: 29 | K110: 0 | L110: 1964 | M110: 430.79 | N110: 390.28 | O110: 0 | P110: 0 | Q110: 0 | R110: ТС ХВС ГВС | S110: 0 | T110: 0 | U110: 0 | V110: 0 | W110: ВО РУФ Ф | X110: 0 | Y110: ЭС К | Z110: 0 | AA110: 0 | AB110: 0 | AC110: 0 | AD110: 0
A111: 99 | B111: 16 | C111: 4401 | D111: Асиновский район | E111: Асиновское городское поселение | F111: г. Асино | H111: ул. им. Ю. Гагарина | I111: 8 | K111: 0 | L111: 1992 | M111: 5611.37 | N111: 4112 | O111: 0 | P111: 0 | Q111: 0 | R111: 0 | S111: 0 | T111: 0 | U111: ЭС К | V111: 0 | W111: 0 | X111: ТС ХВС ГВС ВО РУФ | Y111: 0 | Z111: 0 | AA111: Ф | AB111: 0 | AC111: 0 | AD111: 0
A112: 100 | B112: 17 | C112: 4402 | D112: Асиновский район | E112: Асиновское городское поселение | F112: г. Асино | H112: ул. им. Гончарова | I112: 156 | K112: 0 | L112: 1982 | M112: 3223.5 | N112: 2803.66 | O112: 0 | P112: 0 | Q112: 0 | R112: 0 | S112: 0 | T112: 0 | U112: ТС ХВС ГВС | V112: ЭС К | W112: 0 | X112: 0 | Y112: ВО РУФ Ф | Z112: 0 | AA112: 0 | AB112: 0 | AC112: 0 | AD112: 0
A113: 101 | B113: 18 | C113: 4403 | D113: Асиновский район | E113: Асиновское городское поселение | F113: г. Асино | H113: ул. Ивана Буева | I113: 36 | K113: 0 | L113: 1978 | M113: 4257.32 | N113: 3291.68 | O113: 0 | P113: 0 | Q113: 0 | R113: 0 | S113: ТС ХВС ГВС | T113: 0 | U113: ВО РУФ Ф | V113: 0 | W113: ЭС К | X113: 0 | Y113: 0 | Z113: 0 | AA113: 0 | AB113: 0 | AC113: 0 | AD113: 0
A114: 102 | B114: 19 | C114: 4404 | D114: Асиновский район | E114: Асиновское городское поселение | F114: г. Асино | H114: ул. им. Ивана Черных | I114: 14 | K114: 0 | L114: 1980 | M114: 2621.73 | N114: 1760.78 | O114: 0 | P114: 0 | Q114: 0 | R114: 0 | S114: 0 | T114: ТС ХВС ГВС | U114: 0 | V114: ВО РУФ Ф | W114: 0 | X114: ЭС К | Y114: 0 | Z114: 0 | AA114: 0 | AB114: 0 | AC114: 0 | AD114: 0
A115: 103 | B115: 20 | C115: 4405 | D115: Асиновский район | E115: Асиновское городское поселение | F115: г. Асино | H115: ул. им. Ивана Черных | I115: 18 | K115: 0 | L115: 1988 | M115: 2594.37 | N115: 1765 | O115: 0 | P115: 0 | Q115: К | R115: 0 | S115: 0 | T115: 0 | U115: 0 | V115: 0 | W115: ВО РУФ Ф | X115: 0 | Y115: ТС ХВС ГВС ЭС | Z115: 0 | AA115: 0 | AB115: 0 | AC115: 0 | AD115: 0
A116: 104 | B116: 21 | C116: 4406 | D116: Асиновский район | E116: Асиновское городское поселение | F116: г. Асино | H116: ул. им. Крупской | I116: 16б | K116: 0 | L116: 1986 | M116: 1441.93 | N116: 974.45 | O116: 0 | P116: 0 | Q116: 0 | R116: 0 | S116: 0 | T116: 0 | U116: ЭС К | V116: 0 | W116: ТС ХВС | X116: ВО РУФ Ф | Y116: 0 | Z116: 0 | AA116: 0 | AB116: 0 | AC116: 0 | AD116: 0
A117: 105 | B117: 22 | C117: 4407 | D117: Асиновский район | E117: Асиновское городское поселение | F117: г. Асино | H117: ул. им. Крупской | I117: 18 | K117: 0 | L117: 1975 | M117: 1522.7 | N117: 1089.2 | O117: 0 | P117: 0 | Q117: 0 | R117: ТС ХВС ГВС | S117: 0 | T117: 0 | U117: 0 | V117: ЭС К | W117: 0 | X117: 0 | Y117: ВО РУФ Ф | Z117: 0 | AA117: 0 | AB117: 0 | AC117: 0 | AD117: 0
A118: 106 | B118: 23 | C118: 4408 | D118: Асиновский район | E118: Асиновское городское поселение | F118: г. Асино | H118: ул. им. Крупской | I118: 19 | K118: 0 | L118: 1972 | M118: 381.8 | N118: 290.9 | O118: 0 | P118: 0 | Q118: 0 | S118: 0 | T118: 0 | U118: ВО РУФ Ф | V118: 0 | W118: ЭС К | X118: 0 | Y118: ТС ХВС ГВС | Z118: 0 | AA118: 0 | AB118: 0 | AC118: 0 | AD118: 0
A119: 107 | B119: 24 | C119: 4409 | D119: Асиновский район | E119: Асиновское городское поселение | F119: г. Асино | H119: ул. им. Крупской | I119: 20 | K119: 0 | L119: 1977 | M119: 1550.95 | N119: 1067.35 | O119: 0 | P119: 0 | Q119: 0 | R119: 0 | S119: 0 | T119: 0 | U119: 0 | V119: ТС ХВС ГВС ВО РУФ Ф | W119: 0 | X119: ЭС К | Y119: 0 | Z119: 0 | AA119: 0 | AB119: 0 | AC119: 0 | AD119: 0
A120: 108 | B120: 25 | C120: 4411 | D120: Асиновский район | E120: Асиновское городское поселение | F120: г. Асино | H120: ул. им. Куйбышева | I120: 5 | K120: 0 | L120: 1977 | M120: 544.32 | N120: 503.4 | O120: 0 | P120: 0 | Q120: 0 | R120: 0 | S120: 0 | T120: ТС ХВС | U120: ЭС К НОК | V120: 0 | W120: 0 | X120: РУФ Ф | Y120: 0 | Z120: 0 | AA120: 0 | AB120: 0 | AC120: 0 | AD120: 0
A121: 109 | B121: 26 | C121: 4413 | D121: Асиновский район | E121: Асиновское городское поселение | F121: г. Асино | H121: ул. Льва Толстого | I121: 69 | K121: 0 | L121: 1990 | M121: 1498.2 | N121: 1020.25 | O121: 0 | P121: 0 | Q121: 0 | R121: 0 | S121: 0 | T121: 0 | U121: 0 | V121: ЭС К | W121: 0 | X121: 0 | Y121: ТС ХВС ВО РУФ | Z121: 0 | AA121: Ф | AB121: 0 | AC121: 0 | AD121: 0
A122: 110 | B122: 27 | C122: 4414 | D122: Асиновский район | E122: Асиновское городское поселение | F122: г. Асино | H122: ул. имени Ленина | I122: 1 | K122: 0 | L122: 1981 | M122: 4451.34 | N122: 3359.98 | O122: 0 | P122: 0 | Q122: 0 | R122: 0 | S122: 0 | T122: ТС ХВС ГВС | U122: ВО РУФ Ф | V122: 0 | W122: ЭС К | X122: 0 | Y122: 0 | Z122: 0 | AA122: 0 | AB122: 0 | AC122: 0 | AD122: 0
A123: 111 | B123: 28 | C123: 4415 | D123: Асиновский район | E123: Асиновское городское поселение | F123: г. Асино | H123: ул. имени Ленина | I123: 2 | K123: 0 | L123: 1991 | M123: 8167.79 | N123: 5263.45 | O123: 0 | P123: 0 | Q123: 0 | R123: 0 | S123: 0 | T123: 0 | U123: 0 | V123: ВО РУФ | W123: 0 | X123: ТС ХВС ГВС ЭС К | Y123: 0 | Z123: 0 | AA123: Ф | AB123: 0 | AC123: 0 | AD123: 0
A124: 112 | B124: 29 | C124: 4416 | D124: Асиновский район | E124: Асиновское городское поселение | F124: г. Асино | H124: ул. имени Ленина | I124: 3 | K124: 0 | L124: 1962 | M124: 541.3 | N124: 486.7 | O124: К | P124: 0 | Q124: 0 | R124: ТС ХВС ГВС | S124: 0 | T124: 0 | U124: 0 | V124: 0 | W124: ВО РУФ Ф | X124: 0 | Y124: ЭС НОК | Z124: 0 | AA124: 0 | AB124: 0 | AC124: 0 | AD124: 0
A125: 113 | B125: 30 | C125: 4417 | D125: Асиновский район | E125: Асиновское городское поселение | F125: г. Асино | H125: ул. имени Ленина | I125: 5 | K125: 0 | L125: 1962 | M125: 554.5 | N125: 495.73 | O125: 0 | P125: 0 | Q125: 0 | R125: ТС ХВС ГВС | S125: 0 | T125: 0 | U125: ЭС К | V125: 0 | W125: 0 | X125: ВО РУФ Ф | Y125: 0 | Z125: 0 | AA125: 0 | AB125: 0 | AC125: 0 | AD125: 0
A126: 114 | B126: 31 | C126: 4418 | D126: Асиновский район | E126: Асиновское городское поселение | F126: г. Асино | H126: ул. имени Ленина | I126: 7 | K126: 0 | L126: 1962 | M126: 546 | N126: 499.8 | O126: К | P126: 0 | Q126: 0 | R126: ТС ХВС ГВС | S126: 0 | T126: 0 | U126: 0 | V126: ЭС НОК | W126: 0 | X126: 0 | Y126: ВО РУФ Ф | Z126: 0 | AA126: 0 | AB126: 0 | AC126: 0 | AD126: 0
A127: 115 | B127: 32 | C127: 4419 | D127: Асиновский район | E127: Асиновское городское поселение | F127: г. Асино | H127: ул. имени Ленина | I127: 9 | K127: 0 | L127: 1989 | M127: 1009.88 | N127: 912 | O127: 0 | P127: 0 | Q127: 0 | R127: 0 | S127: 0 | T127: 0 | U127: ВО РУФ | V127: К ТС ХВС | W127: ЭС | X127: 0 | Y127: 0 | Z127: Ф | AA127: 0 | AB127: 0 | AC127: 0 | AD127: 0
A128: 116 | B128: 33 | C128: 4420 | D128: Асиновский район | E128: Асиновское городское поселение | F128: г. Асино | H128: ул. имени Ленина | I128: 11 | K128: 0 | L128: 1992 | M128: 583 | N128: 514.6 | O128: 0 | P128: 0 | Q128: 0 | R128: 0 | S128: 0 | T128: 0 | U128: 0 | V128: ВО РУФ | W128: 0 | X128: ТС ХВС ГВС ЭС К | Y128: 0 | Z128: 0 | AA128: Ф | AB128: 0 | AC128: 0 | AD128: 0
A129: 117 | B129: 34 | C129: 4421 | D129: Асиновский район | E129: Асиновское городское поселение | F129: г. Асино | H129: ул. имени Ленина | I129: 14 | K129: 0 | L129: 1996 | M129: 787.16 | N129: 524.56 | O129: 0 | P129: 0 | Q129: 0 | R129: 0 | S129: 0 | T129: 0 | U129: 0 | V129: 0 | W129: ВО РУФ | X129: ТС ХВС ГВС | Y129: ЭС К | Z129: 0 | AA129: 0 | AB129: 0 | AC129: 0 | AD129: 0
A130: 118 | B130: 35 | C130: 4422 | D130: Асиновский район | E130: Асиновское городское поселение | F130: г. Асино | H130: ул. имени Ленина | I130: 33а | K130: 0 | L130: 1988 | M130: 3037.71 | N130: 2345 | O130: 0 | P130: 0 | Q130: 0 | R130: 0 | S130: 0 | T130: 0 | U130: ЭС К | V130: ТС ХВС ГВС | W130: 0 | X130: ВО РУФ | Y130: 0 | Z130: Ф | AA130: 0 | AB130: 0 | AC130: 0 | AD130: 0
A131: 119 | B131: 36 | C131: 4423 | D131: Асиновский район | E131: Асиновское городское поселение | F131: г. Асино | H131: ул. имени Ленина | I131: 35а | K131: 0 | L131: 1990 | M131: 3639.04 | N131: 2716.71 | O131: 0 | P131: 0 | Q131: 0 | R131: 0 | S131: 0 | T131: 0 | U131: 0 | V131: ЭС К | W131: 0 | X131: ТС ХВС ГВС | Y131: ВО РУФ | Z131: 0 | AA131: Ф | AB131: 0 | AC131: 0 | AD131: 0
A132: 120 | B132: 37 | C132: 4424 | D132: Асиновский район | E132: Асиновское городское поселение | F132: г. Асино | H132: ул. имени Ленина | I132: 50 | K132: 0 | L132: 1994 | M132: 9481.97 | N132: 8479.92 | O132: 0 | P132: 0 | Q132: 0 | R132: 0 | S132: 0 | T132: 0 | U132: ВО РУФ | V132: 0 | W132: ЭС К | X132: 0 | Y132: ТС ХВС ГВС | Z132: 0 | AA132: 0 | AB132: Ф | AC132: 0 | AD132: 0
A133: 121 | B133: 38 | C133: 4425 | D133: Асиновский район | E133: Асиновское городское поселение | F133: г. Асино | H133: ул. имени Ленина | I133: 73 | K133: 0 | L133: 1992 | M133: 1306.6 | N133: 950.9 | O133: 0 | P133: 0 | Q133: 0 | R133: 0 | S133: 0 | T133: 0 | U133: 0 | V133: ВО РУФ | W133: 0 | X133: ТС ХВС ГВС ЭС К | Y133: 0 | Z133: 0 | AA133: Ф | AB133: 0 | AC133: 0 | AD133: 0
A134: 122 | B134: 39 | C134: 4426 | D134: Асиновский район | E134: Асиновское городское поселение | F134: г. Асино | H134: ул. имени Ленина | I134: 81 | K134: 0 | L134: 1995 | M134: 1781.44 | N134: 1349.39 | O134: 0 | P134: 0 | Q134: 0 | R134: 0 | S134: 0 | T134: 0 | U134: 0 | V134: 0 | W134: ВО РУФ | X134: ТС ХВС ГВС | Y134: ЭС К | Z134: 0 | AA134: 0 | AB134: Ф | AC134: 0 | AD134: 0
A135: 123 | B135: 40 | C135: 4427 | D135: Асиновский район | E135: Асиновское городское поселение | F135: г. Асино | H135: ул. имени Ленина | I135: 88 | K135: 0 | L135: 1985, 1988 | M135: 9317.1 | N135: 6847.03 | O135: 0 | P135: 0 | Q135: 0 | R135: 0 | S135: 0 | T135: 0 | U135: ЭС К | V135: 0 | W135: ТС ХВС ГВС | X135: ВО РУФ Ф | Y135: 0 | Z135: 0 | AA135: 0 | AB135: 0 | AC135: 0 | AD135: 0
A136: 124 | B136: 41 | C136: 4428 | D136: Асиновский район | E136: Асиновское городское поселение | F136: г. Асино | H136: ул. имени Ленина | I136: 89 | K136: 0 | L136: 1989 | M136: 3654.88 | N136: 2647.25 | O136: 0 | P136: 0 | Q136: 0 | R136: 0 | S136: 0 | T136: 0 | U136: 0 | V136: ЭС К | W136: ТС ХВС ГВС | X136: 0 | Y136: ВО РУФ | Z136: Ф | AA136: 0 | AB136: 0 | AC136: 0 | AD136: 0
A137: 125 | B137: 42 | C137: 4429 | D137: Асиновский район | E137: Асиновское городское поселение | F137: г. Асино | H137: ул. имени Ленина | I137: 90 | K137: 0 | L137: 1983 | M137: 3414.48 | N137: 2768.2 | O137: 0 | P137: 0 | Q137: К | R137: 0 | S137: 0 | T137: 0 | U137: ВО РУФ Ф | V137: 0 | W137: ТС ХВС ГВС ЭС | X137: 0 | Y137: 0 | Z137: 0 | AA137: 0 | AB137: 0 | AC137: 0 | AD137: 0
A138: 126 | B138: 43 | C138: 4430 | D138: Асиновский район | E138: Асиновское городское поселение | F138: г. Асино | H138: ул. имени Ленина | I138: 91 | K138: 0 | L138: 1989 | M138: 1022.59 | N138: 742.66 | O138: 0 | P138: 0 | Q138: 0 | R138: 0 | S138: 0 | T138: 0 | U138: 0 | V138: ВО РУФ | W138: 0 | X138: ЭС К | Y138: ТС ХВС | Z138: 0 | AA138: 0 | AB138: 0 | AC138: 0 | AD138: 0
A139: 127 | B139: 44 | C139: 4431 | D139: Асиновский район | E139: Асиновское городское поселение | F139: г. Асино | H139: ул. имени Ленина | I139: 92а | K139: 0 | L139: 1981 | M139: 3641.63 | N139: 2736.96 | O139: 0 | P139: 0 | Q139: 0 | R139: 0 | S139: 0 | T139: ТС ХВС ГВС | U139: 0 | V139: 0 | W139: ВО РУФ Ф | X139: 0 | Y139: ЭС К | Z139: 0 | AA139: 0 | AB139: 0 | AC139: 0 | AD139: 0
A140: 128 | B140: 45 | C140: 4432 | D140: Асиновский район | E140: Асиновское городское поселение | F140: г. Асино | H140: ул. Лесозаводская | I140: 30 | K140: 0 | L140: 1972 | M140: 719.85 | N140: 516.15 | O140: 0 | P140: 0 | Q140: 0 | S140: 0 | T140: 0 | U140: ЭС К НОК | V140: 0 | W140: 0 | X140: ВО РУФ Ф ТС ХВС | Y140: 0 | Z140: 0 | AA140: 0 | AB140: 0 | AC140: 0 | AD140: 0
A141: 129 | B141: 46 | C141: 4433 | D141: Асиновский район | E141: Асиновское городское поселение | F141: г. Асино | H141: ул. Лесозаводская | I141: 31 | K141: 0 | L141: 1981 | M141: 544.7 | N141: 493.5 | O141: 0 | P141: К НОК | Q141: 0 | R141: 0 | S141: 0 | T141: 0 | U141: 0 | V141: ТС ХВС ЭС | W141: 0 | X141: 0 | Y141: ВО РУФ Ф | Z141: 0 | AA141: 0 | AB141: 0 | AC141: 0 | AD141: 0
A142: 130 | B142: 47 | C142: 4434 | D142: Асиновский район | E142: Асиновское городское поселение | F142: г. Асино | H142: ул. Мирная | I142: 30 | K142: 0 | L142: 1980 | M142: 570.5 | N142: 505.5 | O142: 0 | P142: 0 | Q142: 0 | R142: 0 | S142: 0 | T142: ТС ХВС | U142: ВО РУФ Ф | V142: 0 | W142: ЭС К НОК | X142: 0 | Y142: 0 | Z142: 0 | AA142: 0 | AB142: 0 | AC142: 0 | AD142: 0
A143: 131 | B143: 48 | C143: 4435 | D143: Асиновский район | E143: Асиновское городское поселение | F143: г. Асино | H143: ул. им. Олега Кошевого | I143: 1а | K143: 0 | L143: 1993 | M143: 1457.76 | N143: 967.66 | O143: 0 | P143: 0 | Q143: 0 | R143: 0 | S143: 0 | T143: 0 | U143: 0 | V143: ВО РУФ | W143: 0 | X143: ЭС К | Y143: ТС ХВС ГВС | Z143: 0 | AA143: 0 | AB143: 0 | AC143: 0 | AD143: 0
A144: 132 | B144: 49 | C144: 4436 | D144: Асиновский район | E144: Асиновское городское поселение | F144: г. Асино | H144: ул. Октябрьская | I144: 39 | K144: 0 | L144: 1991 | M144: 1313.8 | N144: 961.5 | O144: 0 | P144: 0 | Q144: 0 | R144: 0 | S144: 0 | T144: 0 | U144: 0 | V144: 0 | W144: ВО РУФ | X144: ТС ХВС ГВС | Y144: ЭС К | Z144: 0 | AA144: Ф | AB144: 0 | AC144: 0 | AD144: 0
A145: 133 | B145: 50 | C145: 4437 | D145: Асиновский район | E145: Асиновское городское поселение | F145: г. Асино | H145: ул. Павлика Морозова | I145: 2 | K145: 0 | L145: 1965 | M145: 1037 | N145: 974.68 | O145: 0 | P145: 0 | Q145: К | R145: 0 | S145: 0 | T145: 0 | U145: ЭС ТС ХВС | V145: 0 | W145: 0 | X145: ВО РУФ Ф | Y145: 0 | Z145: 0 | AA145: 0 | AB145: 0 | AC145: 0 | AD145: 0
A146: 134 | B146: 51 | C146: 4438 | D146: Асиновский район | E146: Асиновское городское поселение | F146: г. Асино | H146: ул. Павлика Морозова | I146: 3 | K146: 0 | L146: 1965 | M146: 1061.2 | N146: 992.2 | O146: 0 | P146: 0 | Q146: К | S146: 0 | T146: 0 | U146: 0 | V146: ЭС | W146: 0 | X146: 0 | Y146: ВО РУФ Ф ТС ХВС | Z146: 0 | AA146: 0 | AB146: 0 | AC146: 0 | AD146: 0
A147: 135 | B147: 52 | C147: 4439 | D147: Асиновский район | E147: Асиновское городское поселение | F147: г. Асино | H147: ул. Павлика Морозова | I147: 4 | K147: 0 | L147: 1965 | M147: 1061.2 | N147: 986.2 | O147: 0 | P147: 0 | Q147: 0 | S147: 0 | T147: 0 | U147: ВО РУФ Ф | V147: 0 | W147: ЭС К ТС ХВС | X147: 0 | Y147: 0 | Z147: 0 | AA147: 0 | AB147: 0 | AC147: 0 | AD147: 0
A148: 136 | B148: 53 | C148: 4440 | D148: Асиновский район | E148: Асиновское городское поселение | F148: г. Асино | H148: ул. Партизанская | I148: 45 | K148: 0 | L148: 1965 | M148: 427.77 | N148: 388.38 | O148: 0 | P148: 0 | Q148: К | R148: 0 | S148: 0 | T148: 0 | U148: 0 | V148: ВО РУФ Ф | W148: 0 | X148: ЭС ТС ХВС ГВС | Y148: 0 | Z148: 0 | AA148: 0 | AB148: 0 | AC148: 0 | AD148: 0
A149: 137 | B149: 54 | C149: 4441 | D149: Асиновский район | E149: Асиновское городское поселение | F149: г. Асино | H149: ул. Партизанская | I149: 68 | K149: 0 | L149: 1969 | M149: 434.8 | N149: 355 | O149: 0 | P149: 0 | Q149: 0 | R149: ТС ХВС | S149: 0 | T149: 0 | U149: 0 | V149: 0 | W149: ВО РУФ Ф | X149: 0 | Y149: ЭС К | Z149: 0 | AA149: 0 | AB149: 0 | AC149: 0 | AD149: 0
A150: 138 | B150: 55 | C150: 4442 | D150: Асиновский район | E150: Асиновское городское поселение | F150: г. Асино | H150: ул. Партизанская | I150: 70 | K150: 0 | L150: 1983 | M150: 3673.41 | N150: 2741.04 | O150: 0 | P150: 0 | Q150: 0 | R150: 0 | S150: 0 | T150: 0 | U150: ТС ХВС ГВС ЭС К | V150: 0 | W150: 0 | X150: ВО РУФ Ф | Y150: 0 | Z150: 0 | AA150: 0 | AB150: 0 | AC150: 0 | AD150: 0
A151: 139 | B151: 56 | C151: 4443 | D151: Асиновский район | E151: Асиновское городское поселение | F151: г. Асино | H151: пер. Шевченко | I151: 2 | K151: 0 | L151: 1979 | M151: 543.93 | N151: 485.4 | O151: 0 | P151: 0 | Q151: 0 | R151: 0 | S151: 0 | T151: ТС ХВС ГВС | U151: 0 | V151: ЭС К НОК | W151: 0 | X151: 0 | Y151: ВО РУФ Ф | Z151: 0 | AA151: 0 | AB151: 0 | AC151: 0 | AD151: 0
A152: 140 | B152: 57 | C152: 4444 | D152: Асиновский район | E152: Асиновское городское поселение | F152: г. Асино | H152: ул. Рабочая | I152: 103 | K152: 0 | L152: 1970 | M152: 783.9 | N152: 722.6 | O152: 0 | P152: К | Q152: 0 | S152: 0 | T152: 0 | U152: ВО РУФ Ф | V152: 0 | W152: ЭС | X152: ТС ХВС ГВС | Y152: 0 | Z152: 0 | AA152: 0 | AB152: 0 | AC152: 0 | AD152: 0
A153: 141 | B153: 58 | C153: 4445 | D153: Асиновский район | E153: Асиновское городское поселение | F153: г. Асино | H153: ул. Рабочая | I153: 104 | K153: 0 | L153: 1988 | M153: 2207.8 | N153: 1474.3 | O153: 0 | P153: 0 | Q153: 0 | R153: 0 | S153: 0 | T153: 0 | U153: 0 | V153: ТС ХВС ГВС ВО РУФ | W153: 0 | X153: ЭС К | Y153: 0 | Z153: Ф | AA153: 0 | AB153: 0 | AC153: 0 | AD153: 0
A154: 142 | B154: 59 | C154: 4446 | D154: Асиновский район | E154: Асиновское городское поселение | F154: г. Асино | H154: ул. Сельская | I154: 31б | K154: 0 | L154: 1979 | M154: 1557.92 | N154: 1118.49 | O154: 0 | P154: 0 | Q154: 0 | R154: 0 | S154: 0 | T154: 0 | U154: ТС ХВС ГВС | V154: 0 | W154: ВО РУФ Ф | X154: 0 | Y154: ЭС К | Z154: 0 | AA154: 0 | AB154: 0 | AC154: 0 | AD154: 0
A155: 143 | B155: 60 | C155: 4448 | D155: Асиновский район | E155: Асиновское городское поселение | F155: г. Асино | H155: ул. Сельская | I155: 42 | K155: 0 | L155: 1974 | M155: 1114.3 | N155: 703.6 | O155: 0 | P155: 0 | Q155: 0 | R155: 0 | S155: ТС ХВС ГВС | T155: 0 | U155: ЭС К | V155: 0 | W155: 0 | X155: ВО РУФ Ф | Y155: 0 | Z155: 0 | AA155: 0 | AB155: 0 | AC155: 0 | AD155: 0
A156: 144 | B156: 61 | C156: 4449 | D156: Асиновский район | E156: Асиновское городское поселение | F156: г. Асино | H156: ул. Сельская | I156: 44а | K156: 0 | L156: 1986 | M156: 2152.51 | N156: 1967.71 | O156: 0 | P156: 0 | Q156: 0 | R156: 0 | S156: 0 | T156: 0 | U156: 0 | V156: ЭС К | W156: ТС ХВС | X156: 0 | Y156: ВО РУФ Ф | Z156: 0 | AA156: 0 | AB156: 0 | AC156: 0 | AD156: 0
A157: 145 | B157: 62 | C157: 4451 | D157: Асиновский район | E157: Асиновское городское поселение | F157: г. Асино | H157: ул. Советская | I157: 19 | K157: 0 | L157: 1985 | M157: 3734.67 | N157: 2816.33 | O157: 0 | P157: 0 | Q157: 0 | R157: 0 | S157: 0 | T157: 0 | U157: 0 | V157: ТС ХВС ГВС ВО РУФ Ф | W157: 0 | X157: ЭС К | Y157: 0 | Z157: 0 | AA157: 0 | AB157: 0 | AC157: 0 | AD157: 0
A158: 146 | B158: 63 | C158: 4452 | D158: Асиновский район | E158: Асиновское городское поселение | F158: г. Асино | H158: ул. Стадионная | I158: 15 | K158: 0 | L158: 1989 | M158: 3481.07 | N158: 2373.55 | O158: 0 | P158: 0 | Q158: 0 | R158: 0 | S158: 0 | T158: 0 | U158: 0 | V158: 0 | W158: ТС ХВС ГВС ВО РУФ | X158: 0 | Y158: ЭС К | Z158: Ф | AA158: 0 | AB158: 0 | AC158: 0 | AD158: 0
A159: 147 | B159: 64 | C159: 4453 | D159: Асиновский район | E159: Асиновское городское поселение | F159: г. Асино | H159: ул. Стадионная | I159: 20 | K159: 0 | L159: 1978 | M159: 3987.45 | N159: 3104.51 | O159: 0 | P159: 0 | Q159: 0 | R159: 0 | S159: ТС ХВС ГВС | T159: 0 | U159: ЭС К | V159: 0 | W159: 0 | X159: ВО РУФ Ф | Y159: 0 | Z159: 0 | AA159: 0 | AB159: 0 | AC159: 0 | AD159: 0
A160: 148 | B160: 65 | C160: 4454 | D160: Асиновский район | E160: Асиновское городское поселение | F160: г. Асино | H160: ул. Стадионная | I160: 45 | K160: 0 | L160: 1990 | M160: 547.1 | N160: 431.72 | O160: 0 | P160: 0 | Q160: 0 | R160: 0 | S160: 0 | T160: 0 | U160: 0 | V160: ЭС К | W160: ТС ХВС ГВС | X160: 0 | Y160: ВО РУФ | Z160: 0 | AA160: Ф | AB160: 0 | AC160: 0 | AD160: 0
A161: 149 | B161: 66 | C161: 4455 | D161: Асиновский район | E161: Асиновское городское поселение | F161: г. Асино | H161: ул. Станционная | I161: 11 | K161: 0 | L161: 1975 | M161: 770.7 | N161: 708.9 | O161: 0 | P161: 0 | Q161: 0 | S161: 0 | T161: 0 | U161: ВО РУФ Ф ТС ХВС | V161: 0 | W161: ЭС К | X161: 0 | Y161: 0 | Z161: 0 | AA161: 0 | AB161: 0 | AC161: 0 | AD161: 0
A162: =A161+1 -> 150 | B162: =B161+1 -> 67 | C162: 4456 | D162: Асиновский район | E162: Асиновское городское поселение | F162: г. Асино | H162: ул. Строителей | I162: 7а | K162: 0 | L162: 1968 | M162: 933.8 | N162: 841.4 | O162: 0 | P162: 0 | Q162: 0 | S162: 0 | T162: 0 | U162: 0 | V162: ВО РУФ Ф ТС ХВС ГВС | W162: 0 | X162: ЭС К | Y162: 0 | Z162: 0 | AA162: 0 | AB162: 0 | AC162: 0 | AD162: 0
A163: 151 | B163: 68 | C163: 4457 | D163: Асиновский район | E163: Асиновское городское поселение | F163: г. Асино | H163: ул. Строителей | I163: 9 | K163: 0 | L163: 1980 | M163: 4419.06 | N163: 3062.58 | O163: 0 | P163: 0 | Q163: 0 | R163: 0 | S163: 0 | T163: ТС ХВС ГВС | U163: 0 | V163: 0 | W163: ВО РУФ Ф | X163: 0 | Y163: ЭС К | Z163: 0 | AA163: 0 | AB163: 0 | AC163: 0 | AD163: 0
A164: 152 | B164: 69 | C164: 4458 | D164: Асиновский район | E164: Асиновское городское поселение | F164: г. Асино | H164: ул. Тельмана | I164: 38 | K164: 0 | L164: 1980 | M164: 3997.92 | N164: 3010.92 | O164: 0 | P164: 0 | Q164: 0 | R164: 0 | S164: 0 | T164: ТС ХВС ГВС | U164: ЭС К | V164: 0 | W164: 0 | X164: ВО РУФ Ф | Y164: 0 | Z164: 0 | AA164: 0 | AB164: 0 | AC164: 0 | AD164: 0
A165: 153 | B165: 70 | C165: 4459 | D165: Асиновский район | E165: Асиновское городское поселение | F165: г. Асино | H165: ул. Центральная | I165: 6 | K165: 0 | L165: 1966 | M165: 685.23 | N165: 631.03 | O165: 0 | P165: 0 | Q165: 0 | R165: К | S165: 0 | T165: 0 | U165: 0 | V165: ЭС ТС ХВС | W165: 0 | X165: 0 | Y165: ВО РУФ Ф | Z165: 0 | AA165: 0 | AB165: 0 | AC165: 0 | AD165: 0
A166: 154 | B166: 71 | C166: 4460 | D166: Асиновский район | E166: Асиновское городское поселение | F166: г. Асино | H166: ул. Центральная | I166: 11 | K166: 0 | L166: 1966 | M166: 679.16 | N166: 630.2 | O166: К | P166: 0 | Q166: 0 | S166: 0 | T166: 0 | U166: ВО РУФ Ф | V166: 0 | W166: ЭС | X166: ТС ХВС ГВС | Y166: 0 | Z166: 0 | AA166: 0 | AB166: 0 | AC166: 0 | AD166: 0
A167: 155 | B167: 72 | C167: 4461 | D167: Асиновский район | E167: Асиновское городское поселение | F167: г. Асино | H167: ул. им. В. Чапаева | I167: 21а | K167: 0 | L167: 1974 | M167: 423.65 | N167: 381 | O167: 0 | P167: 0 | Q167: 0 | S167: 0 | T167: 0 | U167: 0 | V167: ВО РУФ Ф | W167: 0 | X167: ЭС К ТС ХВС ГВС | Y167: 0 | Z167: 0 | AA167: 0 | AB167: 0 | AC167: 0 | AD167: 0
A168: 156 | B168: 73 | C168: 4462 | D168: Асиновский район | E168: Асиновское городское поселение | F168: г. Асино | H168: ул. им. В. Чапаева | I168: 23 | K168: 0 | L168: 1984 | M168: 2121.59 | N168: 1443.54 | O168: 0 | P168: 0 | Q168: 0 | R168: 0 | S168: 0 | T168: 0 | U168: ТС ХВС ГВС | V168: 0 | W168: ВО РУФ Ф | X168: 0 | Y168: ЭС К | Z168: 0 | AA168: 0 | AB168: 0 | AC168: 0 | AD168: 0
A169: 157 | B169: 74 | C169: 4463 | D169: Асиновский район | E169: Асиновское городское поселение | F169: г. Асино | H169: ул. Челюскина | I169: 13 | K169: 0 | L169: 1969 | M169: 1064.71 | N169: 721.5 | O169: 0 | P169: 0 | Q169: 0 | S169: 0 | T169: 0 | U169: ЭС К ТС ХВС | V169: 0 | W169: 0 | X169: ВО РУФ Ф | Y169: 0 | Z169: 0 | AA169: 0 | AB169: 0 | AC169: 0 | AD169: 0
A170: 158 | B170: 75 | C170: 4464 | D170: Асиновский район | E170: Асиновское городское поселение | F170: г. Асино | H170: ул. Челюскина | I170: 15 | K170: 0 | L170: 1969 | M170: 591.8 | N170: 367.5 | O170: 0 | P170: 0 | Q170: К | R170: 0 | S170: 0 | T170: 0 | U170: 0 | V170: ЭС ТС ХВС ГВС | W170: 0 | X170: 0 | Y170: ВО РУФ Ф | Z170: 0 | AA170: 0 | AB170: 0 | AC170: 0 | AD170: 0
A171: 159 | B171: 76 | C171: 4465 | D171: Асиновский район | E171: Асиновское городское поселение | F171: г. Асино | H171: ул. им. Шевченко | I171: 5 | K171: 0 | L171: 1980 | M171: 549.55 | N171: 497.13 | O171: 0 | P171: 0 | Q171: 0 | R171: 0 | S171: 0 | T171: ТС ХВС | U171: ВО РУФ Ф | V171: 0 | W171: ЭС К НОК | X171: 0 | Y171: 0 | Z171: 0 | AA171: 0 | AB171: 0 | AC171: 0 | AD171: 0
A172: 160 | B172: 77 | C172: 4466 | D172: Асиновский район | E172: Асиновское городское поселение | F172: г. Асино | H172: ул. им. Шевченко | I172: 6 | K172: 0 | L172: 1981 | M172: 557.65 | N172: 497.9 | O172: 0 | P172: 0 | Q172: 0 | R172: 0 | S172: 0 | T172: ТС ХВС ГВС | U172: 0 | V172: ВО РУФ Ф | W172: 0 | X172: ЭС К НОК | Y172: 0 | Z172: 0 | AA172: 0 | AB172: 0 | AC172: 0 | AD172: 0
A173: 161 | B173: 78 | C173: 4467 | D173: Асиновский район | E173: Асиновское городское поселение | F173: г. Асино | H173: ул. им. Шевченко | I173: 8 | K173: 0 | L173: 1981 | M173: 558.7 | N173: 495.13 | O173: 0 | P173: 0 | Q173: 0 | R173: 0 | S173: 0 | T173: 0 | U173: ТС ХВС | V173: 0 | W173: ВО РУФ Ф | X173: 0 | Y173: ЭС К НОК | Z173: 0 | AA173: 0 | AB173: 0 | AC173: 0 | AD173: 0
A174: 162 | B174: 79 | C174: 4468 | D174: Асиновский район | E174: Асиновское городское поселение | F174: г. Асино | H174: ул. им. Шевченко | I174: 10 | K174: 0 | L174: 1982 | M174: 556.55 | N174: 496.18 | O174: 0 | P174: 0 | Q174: 0 | R174: 0 | S174: 0 | T174: 0 | U174: ТС ХВС ЭС К НОК | V174: 0 | W174: 0 | X174: ВО РУФ Ф | Y174: 0 | Z174: 0 | AA174: 0 | AB174: 0 | AC174: 0 | AD174: 0
A175: 163 | B175: 80 | C175: 4469 | D175: Асиновский район | E175: Асиновское городское поселение | F175: г. Асино | H175: ул. им. Щорса | I175: 41 | K175: 0 | L175: 1992 | M175: 1304.8 | N175: 1140 | O175: 0 | P175: 0 | Q175: 0 | R175: 0 | S175: 0 | T175: 0 | U175: 0 | V175: ЭС К | W175: 0 | X175: ТС ХВС ГВС | Y175: ВО РУФ | Z175: 0 | AA175: Ф | AB175: 0 | AC175: 0 | AD175: 0
A176: 164 | B176: 81 | C176: 4470 | D176: Асиновский район | E176: Асиновское городское поселение | F176: г. Асино | H176: ул. им. Щорса | I176: 43 | K176: 0 | L176: 1991 | M176: 3542.3 | N176: 2609.6 | O176: 0 | P176: 0 | Q176: 0 | R176: 0 | S176: 0 | T176: 0 | U176: ВО РУФ | V176: 0 | W176: ЭС К | X176: ТС ХВС ГВС | Y176: 0 | Z176: 0 | AA176: Ф | AB176: 0 | AC176: 0 | AD176: 0
A177: 165 | B177: 82 | C177: 4471 | D177: Асиновский район | E177: Асиновское городское поселение | F177: г. Асино | H177: ул. Боровая | I177: 7 | K177: 0 | L177: 1985 | M177: 5521.74 | N177: 4133.87 | O177: 0 | P177: 0 | Q177: 0 | R177: 0 | S177: 0 | T177: 0 | U177: 0 | V177: ВО РУФ Ф | W177: ТС ХВС ГВС | X177: ЭС К | Y177: 0 | Z177: 0 | AA177: 0 | AB177: 0 | AC177: 0 | AD177: 0
A178: 166 | B178: 83 | C178: 4472 | D178: Асиновский район | E178: Асиновское городское поселение | F178: г. Асино | H178: ул. имени В.В. Липатова | I178: 6 | K178: 0 | L178: 1973 | M178: 3838.75 | N178: 3112.2 | O178: 0 | P178: 0 | Q178: 0 | S178: 0 | T178: 0 | U178: 0 | V178: 0 | W178: ВО РУФ Ф ТС ХВС ГВС | X178: 0 | Y178: ЭС К | Z178: 0 | AA178: 0 | AB178: 0 | AC178: 0 | AD178: 0
A179: 167 | B179: 84 | C179: 4473 | D179: Асиновский район | E179: Асиновское городское поселение | F179: г. Асино | H179: ул. Ивана Буева | I179: 12 | K179: 0 | L179: 1977 | M179: 1104.59 | N179: 1054.14 | O179: 0 | P179: 0 | Q179: 0 | R179: 0 | S179: ТС ХВС ГВС | T179: 0 | U179: ЭС К | V179: 0 | W179: 0 | X179: ВО РУФ Ф | Y179: 0 | Z179: 0 | AA179: 0 | AB179: 0 | AC179: 0 | AD179: 0
A180: 168 | B180: 85 | C180: 4474 | D180: Асиновский район | E180: Асиновское городское поселение | F180: г. Асино | H180: ул. им. Куйбышева | I180: 6 | K180: 0 | L180: 1978 | M180: 831.56 | N180: 739.76 | O180: 0 | P180: 0 | Q180: 0 | R180: 0 | S180: 0 | T180: 0 | U180: ТС ХВС | V180: ЭС К НОК | W180: 0 | X180: 0 | Y180: ВО РУФ Ф | Z180: 0 | AA180: 0 | AB180: 0 | AC180: 0 | AD180: 0
A181: 169 | B181: 86 | C181: 4475 | D181: Асиновский район | E181: Асиновское городское поселение | F181: г. Асино | H181: ул. имени Ленина | I181: 93 | K181: 0 | L181: 1993 | M181: 1743.73 | N181: 1312.36 | O181: 0 | P181: 0 | Q181: 0 | R181: 0 | S181: 0 | T181: 0 | U181: ВО РУФ | V181: К ТС ХВС ГВС | W181: ЭС | X181: 0 | Y181: 0 | Z181: 0 | AA181: 0 | AB181: 0 | AC181: 0 | AD181: 0
A182: 170 | B182: 87 | C182: 4476 | D182: Асиновский район | E182: Асиновское городское поселение | F182: г. Асино | H182: ул. Лесозаводская | I182: 28 | K182: 0 | L182: 1972 | M182: 716 | N182: 508.8 | O182: 0 | P182: 0 | Q182: 0 | S182: 0 | T182: 0 | U182: 0 | V182: РУФ Ф | W182: ТС ХВС | X182: ЭС К НОК | Y182: 0 | Z182: 0 | AA182: 0 | AB182: 0 | AC182: 0 | AD182: 0
A183: 171 | B183: 88 | C183: 4477 | D183: Асиновский район | E183: Асиновское городское поселение | F183: г. Асино | H183: ул. Павлика Морозова | I183: 1 | K183: 0 | L183: 1965 | M183: 1059.5 | N183: 987.5 | O183: 0 | P183: 0 | Q183: 0 | S183: 0 | T183: 0 | U183: 0 | V183: 0 | W183: ВО РУФ Ф ТС ХВС | X183: 0 | Y183: ЭС К | Z183: 0 | AA183: 0 | AB183: 0 | AC183: 0 | AD183: 0
A184: 172 | B184: 89 | C184: 4478 | D184: Асиновский район | E184: Асиновское городское поселение | F184: г. Асино | H184: ул. Партизанская | I184: 40 | K184: 0 | L184: 1974 | M184: 3780 | N184: 2920.79 | O184: К | P184: 0 | Q184: РУФ | R184: 0 | S184: 0 | T184: 0 | U184: ЭС | V184: 0 | W184: 0 | X184: ВО Ф | Y184: ТС ХВС ГВС | Z184: 0 | AA184: 0 | AB184: 0 | AC184: 0 | AD184: 0
A185: 173 | B185: 90 | C185: 4479 | D185: Асиновский район | E185: Асиновское городское поселение | F185: г. Асино | H185: ул. Строителей | I185: 3 | K185: 0 | L185: 1969 | M185: 951.71 | N185: 867.09 | O185: 0 | P185: 0 | Q185: 0 | R185: 0 | S185: 0 | T185: 0 | U185: ХВС ГВС | V185: ЭС К | W185: 0 | X185: 0 | Y185: ТС РУФ Ф | Z185: 0 | AA185: 0 | AB185: 0 | AC185: 0 | AD185: 0
A186: 174 | B186: 91 | C186: 4480 | D186: Асиновский район | E186: Асиновское городское поселение | F186: г. Асино | H186: ул. Сельская | I186: 53 | K186: 0 | L186: 1956 | M186: 426.1 | N186: 385.1 | O186: 0 | P186: 0 | Q186: К | R186: 0 | S186: 0 | T186: НОК ТС ХВС | U186: ВО РУФ Ф | V186: 0 | W186: ЭС | X186: 0 | Y186: 0 | Z186: 0 | AA186: 0 | AB186: 0 | AC186: 0 | AD186: 0
A187: 175 | B187: 92 | C187: 4481 | D187: Асиновский район | E187: Асиновское городское поселение | F187: г. Асино | H187: ул. Сельская | I187: 55 | K187: 0 | L187: 1965 | M187: 451.5 | N187: 387.1 | O187: 0 | P187: 0 | Q187: К | R187: 0 | S187: 0 | T187: 0 | U187: 0 | V187: ВО РУФ Ф | W187: 0 | X187: ЭС | Y187: ТС ХВС | Z187: 0 | AA187: 0 | AB187: 0 | AC187: 0 | AD187: 0
A188: 176 | B188: 93 | C188: 4482 | D188: Асиновский район | E188: Асиновское городское поселение | F188: г. Асино | H188: ул. Станционная | I188: 24 | K188: 0 | L188: 1990 | M188: 1273.9 | N188: 988.8 | O188: 0 | P188: 0 | Q188: 0 | R188: 0 | S188: 0 | T188: 0 | U188: 0 | V188: 0 | W188: ВО РУФ | X188: ТС ХВС ГВС | Y188: ЭС К | Z188: 0 | AA188: Ф | AB188: 0 | AC188: 0 | AD188: 0
A189: 177 | B189: 94 | C189: 4483 | D189: Асиновский район | E189: Асиновское городское поселение | F189: г. Асино | H189: ул. им. Шевченко | I189: 11 | K189: 0 | L189: 1983 | M189: 546.74 | N189: 489.4 | O189: 0 | P189: 0 | Q189: 0 | R189: 0 | S189: 0 | T189: 0 | U189: ЭС К НОК | V189: ТС ХВС | W189: 0 | X189: ВО РУФ Ф | Y189: 0 | Z189: 0 | AA189: 0 | AB189: 0 | AC189: 0 | AD189: 0
A190: 178 | B190: 95 | C190: 4484 | D190: Асиновский район | E190: Асиновское городское поселение | F190: г. Асино | H190: ул. Мирная | I190: 28 | K190: 0 | L190: 1980 | M190: 798.1 | N190: 703.1 | O190: 0 | P190: 0 | Q190: 0 | R190: 0 | S190: 0 | T190: ТС ХВС ГВС | U190: 0 | V190: ЭС К НОК | W190: 0 | X190: 0 | Y190: ВО РУФ Ф | Z190: 0 | AA190: 0 | AB190: 0 | AC190: 0 | AD190: 0
A191: 179 | B191: 96 | C191: 4485 | D191: Асиновский район | E191: Асиновское городское поселение | F191: г. Асино | H191: ул. им. 370 Стрелковой дивизии | I191: 28 | K191: 0 | L191: 1974 | M191: 644.8 | N191: 576.7 | O191: 0 | P191: 0 | Q191: 0 | S191: 0 | T191: 0 | U191: ВО РУФ Ф ТС ХВС | V191: 0 | W191: ЭС К | X191: 0 | Y191: 0 | Z191: 0 | AA191: 0 | AB191: 0 | AC191: 0 | AD191: 0
A192: 180 | B192: 97 | C192: 4486 | D192: Асиновский район | E192: Асиновское городское поселение | F192: г. Асино | H192: ул. им. 370 Стрелковой дивизии | I192: 38 | K192: 0 | L192: 1963 | M192: 308.44 | N192: 304.31 | O192: 0 | P192: 0 | R192: ТС ХВС | S192: 0 | T192: 0 | U192: 0 | V192: ВО РУФ Ф | W192: К | X192: ЭС | Y192: 0 | Z192: 0 | AA192: 0 | AB192: 0 | AC192: 0 | AD192: 0
A193: 181 | B193: 98 | C193: 4487 | D193: Асиновский район | E193: Асиновское городское поселение | F193: г. Асино | H193: ул. им. 370 Стрелковой дивизии | I193: 52 | K193: 0 | L193: 1988 | M193: 574.89 | N193: 433.2 | O193: 0 | P193: 0 | Q193: 0 | R193: 0 | S193: 0 | T193: 0 | U193: 0 | V193: 0 | W193: ВО РУФ | X193: ТС ХВС | Y193: ЭС К | Z193: Ф | AA193: 0 | AB193: 0 | AC193: 0 | AD193: 0
A194: 182 | B194: 99 | C194: 4488 | D194: Асиновский район | E194: Асиновское городское поселение | F194: г. Асино | H194: ул. им. 370 Стрелковой дивизии | I194: 26/2 | K194: 0 | L194: 1983 | M194: 593.28 | N194: 432.73 | O194: 0 | P194: 0 | Q194: 0 | R194: 0 | S194: 0 | T194: 0 | U194: ЭС К НОК | V194: ТС ХВС | W194: 0 | X194: ВО РУФ Ф | Y194: 0 | Z194: 0 | AA194: 0 | AB194: 0 | AC194: 0 | AD194: 0
A195: 183 | B195: 100 | C195: 4489 | D195: Асиновский район | E195: Асиновское городское поселение | F195: г. Асино | H195: ул. им. 370 Стрелковой дивизии | I195: 26/3 | K195: 0 | L195: 1986 | M195: 2922.45 | N195: 1961.99 | O195: 0 | P195: 0 | Q195: 0 | R195: 0 | S195: 0 | T195: 0 | U195: 0 | V195: ТС ХВС ГВС ЭС К | W195: 0 | X195: 0 | Y195: ВО РУФ Ф | Z195: 0 | AA195: 0 | AB195: 0 | AC195: 0 | AD195: 0
A196: 184 | B196: 101 | C196: 4490 | D196: Асиновский район | E196: Асиновское городское поселение | F196: г. Асино | H196: ул. им. 370 Стрелковой дивизии | I196: 28/2 | K196: 0 | L196: 1988 | M196: 547.4 | N196: 431.6 | O196: 0 | P196: 0 | Q196: 0 | R196: 0 | S196: 0 | T196: 0 | U196: ВО РУФ | V196: ТС ХВС ГВС | W196: ЭС К | X196: 0 | Y196: 0 | Z196: Ф | AA196: 0 | AB196: 0 | AC196: 0 | AD196: 0
A197: 185 | B197: 102 | C197: 4491 | D197: Асиновский район | E197: Асиновское городское поселение | F197: г. Асино | H197: ул. АВПУ | I197: 14 | K197: 0 | L197: 1988 | M197: 966.81 | N197: 644.78 | O197: 0 | P197: 0 | Q197: 0 | R197: 0 | S197: 0 | T197: 0 | U197: 0 | V197: ВО РУФ | W197: ТС ХВС | X197: ЭС К НОК | Y197: 0 | Z197: Ф | AA197: 0 | AB197: 0 | AC197: 0 | AD197: 0
A198: 186 | B198: 103 | C198: 4492 | D198: Асиновский район | E198: Асиновское городское поселение | F198: г. Асино | H198: ул. АВПУ | I198: 14/1 | K198: 0 | L198: 1990 | M198: 1533.67 | N198: 866.02 | O198: 0 | P198: 0 | Q198: 0 | R198: 0 | S198: 0 | T198: 0 | U198: 0 | V198: 0 | W198: ВО РУФ | X198: ТС ХВС | Y198: ЭС К НОК | Z198: 0 | AA198: Ф | AB198: 0 | AC198: 0 | AD198: 0
A199: 187 | B199: 104 | C199: 4493 | D199: Асиновский район | E199: Асиновское городское поселение | F199: г. Асино | H199: ул. АВПУ | I199: 14/2 | K199: 0 | L199: 1991 | M199: 1005.82 | N199: 648.64 | O199: 0 | P199: 0 | Q199: 0 | R199: 0 | S199: 0 | T199: 0 | U199: ЭС К НОК | V199: 0 | W199: 0 | X199: ВО РУФ | Y199: ТС ХВС | Z199: 0 | AA199: Ф | AB199: 0 | AC199: 0 | AD199: 0
A200: 188 | B200: 105 | C200: 4494 | D200: Асиновский район | E200: Асиновское городское поселение | F200: г. Асино | H200: ул. АВПУ | I200: 16/1 | K200: 0 | L200: 1990 | M200: 1161.47 | N200: 873.6 | O200: 0 | P200: 0 | Q200: 0 | R200: 0 | S200: 0 | T200: 0 | U200: 0 | V200: ЭС К НОК | W200: 0 | X200: ТС ХВС | Y200: ВО РУФ | Z200: 0 | AA200: Ф | AB200: 0 | AC200: 0 | AD200: 0
A201: 189 | B201: 106 | C201: 4495 | D201: Асиновский район | E201: Асиновское городское поселение | F201: г. Асино | H201: ул. АВПУ | I201: 23 | K201: 0 | L201: 1988 | M201: 886.84 | N201: 647.49 | O201: 0 | P201: 0 | Q201: 0 | R201: 0 | S201: 0 | T201: 0 | U201: ВО РУФ | V201: 0 | W201: ТС ХВС ЭС К НОК | X201: 0 | Y201: 0 | Z201: Ф | AA201: 0 | AB201: 0 | AC201: 0 | AD201: 0
A202: 190 | B202: 107 | C202: 4496 | D202: Асиновский район | E202: Асиновское городское поселение | F202: г. Асино | H202: ул. АВПУ | I202: 23/1 | K202: 0 | L202: 1983 | M202: 595.67 | N202: 430.66 | O202: 0 | P202: 0 | Q202: 0 | R202: 0 | S202: 0 | T202: 0 | U202: ТС ХВС | V202: ВО РУФ Ф | W202: 0 | X202: ЭС К | Y202: 0 | Z202: 0 | AA202: 0 | AB202: 0 | AC202: 0 | AD202: 0
A203: 191 | B203: 108 | C203: 4497 | D203: Асиновский район | E203: Асиновское городское поселение | F203: г. Асино | H203: ул. АВПУ | I203: 23/2 | K203: 0 | L203: 1986 | M203: 591.65 | N203: 433.48 | O203: 0 | P203: 0 | Q203: 0 | R203: 0 | S203: 0 | T203: 0 | U203: 0 | V203: ТС ХВС | W203: ВО РУФ Ф | X203: 0 | Y203: ЭС К НОК | Z203: 0 | AA203: 0 | AB203: 0 | AC203: 0 | AD203: 0
... 2046 more rows
